{"text_format":"3","workbook":"xlsx","n_sheets":2,"sheets":["Inicio","Calendario familiar"],"not_rendered":{"images":2,"defined_names":15},"read":"whole","date_system":"1900"}

{"sheet":"Inicio","index":0,"n_rows":7,"n_cols":2,"rows_kept":7}
[null,"INFORMACIÓN ACERCA DE ESTA PLANTILLA"]
[null,"Realiza un seguimiento de las fechas importantes y escribe notas en este calendario familiar."]
[null,"Personaliza el título del calendario y selecciona el año."]
[null,"Cada mes del calendario se actualiza automáticamente."]
[null,"Nota: "]
[null,"Se han proporcionado instrucciones adicionales en la columna A de la hoja de cálculo Calendario familiar. Este texto se ocultó a propósito. Para eliminar el texto, selecciona la columna A y, a continuación, ELIMINAR. Para mostrar el texto, selecciona la columna A y, a continuación, cambia el color de fuente."]
[null,"Para obtener más información acerca de las tablas, presiona las teclas MAYÚS y F10 dentro de una tabla, selecciona la opción TABLA y después TEXTO ALTERNATIVO"]

{"sheet":"Calendario familiar","index":1,"n_rows":49,"n_cols":38,"rows_kept":49,"merged":[[2,3,2,29],[2,30,2,34],[2,37,2,39],[5,3,5,6],[5,7,5,16],[5,20,5,34],[6,3,6,6],[6,7,6,16],[6,20,6,34],[7,3,7,6],[7,7,7,16],[7,20,7,34],[8,3,8,6],[8,7,8,16],[8,20,8,34],[9,3,9,6],[9,7,9,16],[9,20,9,34],[10,3,10,6],[10,7,10,16],[10,20,10,34],[11,3,11,6],[11,7,11,16],[11,20,11,34],[12,3,12,6],[12,7,12,16],[12,20,12,34],[13,3,13,6],[13,7,13,16],[13,20,13,34],[14,3,14,6],[14,7,14,16],[14,20,14,34],[15,3,15,6],[15,7,15,16],[15,20,15,34],[16,3,16,6],[16,7,16,16],[16,20,16,34],[17,3,17,6],[17,7,17,16],[17,20,17,34],[18,3,18,6],[18,7,18,16],[18,20,18,34],[19,3,19,6],[19,7,19,16],[19,20,19,34],[20,3,20,4],[21,3,21,4],[23,2,23,8],[23,11,23,17],[23,20,23,26],[23,29,23,35],[32,2,32,8],[32,11,32,17],[32,20,32,26],[32,29,32,35],[41,2,41,8],[41,11,41,17],[41,20,41,26],[41,29,41,35]]}
["Crea un calendario familiar para cualquier año en esta hoja de cálculo. Encontrarás instrucciones útiles sobre cómo usar esta hoja de cálculo en las celdas de esta columna. La siguiente instrucción se encuentra en la celda A3."]
[]
["Personaliza el título del calendario en la celda D3 y escribe el año en la celda AE3. La sugerencia está en la celda AL3. La siguiente instrucción se encuentra en la celda A5.",null,null,"Calendario familiar de los Rodríguez",{"$nulls":26},{"$f":"YEAR(TODAY())","v":2019},{"$nulls":6},"Sugerencia: Utiliza el indicador giratorio en esta celda para cambiar el año de calendario."]
[]
["La etiqueta Fechas importantes está en la celda D5 y etiqueta Notas en U5. Escribe las fechas importantes en las celdas D6 a D20, las ocasiones o los eventos en las celdas H6 a H20 y las notas en celdas U6 a U20. La siguiente instrucción se encuentra en la celda A23.",null,null,"Fechas importantes",{"$nulls":16},"Notas"]
[{"$nulls":3},{"$f":"DATE(YEAR(TODAY()),1,1)","v":"2019-01-01"},{"$nulls":3},"Día de Año Nuevo"]
[{"$nulls":3},{"$f":"DATE(YEAR(TODAY()),3,25)","v":"2019-03-25"},{"$nulls":3},"Cumpleaños de Jorge"]
{"$rows_empty":15}
["El calendario anual está en las celdas C24 a AJ49, el calendario de enero en las celdas C25 a I31, el calendario de febrero en las celdas L25 a R31, el calendario de marzo en las celdas U25 a AA31 y calendario de abril en las celdas AD25 a AJ31."]
["Los nombres de los meses se encuentran en esta fila. La etiqueta de enero está en la celda C24, la etiqueta de febrero en la celda L24, marzo en U24 y abril en AD24.",null,{"$f":"DATE(AñoCalendario,1,1)","v":"2019-01-01"},{"$nulls":8},{"$f":"DATE(AñoCalendario,2,1)","v":"2019-02-01"},{"$nulls":8},{"$f":"DATE(AñoCalendario,3,1)","v":"2019-03-01"},{"$nulls":8},{"$f":"DATE(AñoCalendario,4,1)","v":"2019-04-01"}]
["Los nombres de los días laborables se encuentran en esta fila. Los nombres de los días laborables de enero están en las celdas C25 a I25, los días laborables de febrero en las celdas L25 a R25, los días laborables de marzo en las celdas U25 a AA25 y los días laborables de abril en las celdas AD25 a AJ25.",null,"lu","ma","mi","ju","vi","sá","do",null,null,"lu","ma","mi","ju","vi","sá","do",null,null,"lu","ma","mi","ju","vi","sá","do",null,null,"lu","ma","mi","ju","vi","sá","do"]
["Las fechas se actualizan automáticamente en esta fila. Las fechas de enero están en las celdas a la derecha, las celdas C26 a I31, las fechas de febrero en las celdas L26 a R31, las fechas de marzo en las celdas U26 a AA31 y las de abril en las celdas AD26 a AJ31. La instrucción siguiente se encuentra en la celda A32.",null,{"$f":"IF(DAY(EneDom1)=1,\"\",IF(AND(YEAR(EneDom1+1)=AñoCalendario,MONTH(EneDom1+1)=1),EneDom1+1,\"\"))","v":""},{"$f":"IF(DAY(EneDom1)=1,\"\",IF(AND(YEAR(EneDom1+2)=AñoCalendario,MONTH(EneDom1+2)=1),EneDom1+2,\"\"))","v":"2019-01-01"},{"$f":"IF(DAY(EneDom1)=1,\"\",IF(AND(YEAR(EneDom1+3)=AñoCalendario,MONTH(EneDom1+3)=1),EneDom1+3,\"\"))","v":"2019-01-02"},{"$f":"IF(DAY(EneDom1)=1,\"\",IF(AND(YEAR(EneDom1+4)=AñoCalendario,MONTH(EneDom1+4)=1),EneDom1+4,\"\"))","v":"2019-01-03"},{"$f":"IF(DAY(EneDom1)=1,\"\",IF(AND(YEAR(EneDom1+5)=AñoCalendario,MONTH(EneDom1+5)=1),EneDom1+5,\"\"))","v":"2019-01-04"},{"$f":"IF(DAY(EneDom1)=1,\"\",IF(AND(YEAR(EneDom1+6)=AñoCalendario,MONTH(EneDom1+6)=1),EneDom1+6,\"\"))","v":"2019-01-05"},{"$f":"IF(DAY(EneDom1)=1,IF(AND(YEAR(EneDom1)=AñoCalendario,MONTH(EneDom1)=1),EneDom1,\"\"),IF(AND(YEAR(EneDom1+7)=AñoCalendario,MONTH(EneDom1+7)=1),EneDom1+7,\"\"))","v":"2019-01-06"},null,null,{"$f":"IF(DAY(FebDom1)=1,\"\",IF(AND(YEAR(FebDom1+1)=AñoCalendario,MONTH(FebDom1+1)=2),FebDom1+1,\"\"))","v":""},{"$f":"IF(DAY(FebDom1)=1,\"\",IF(AND(YEAR(FebDom1+2)=AñoCalendario,MONTH(FebDom1+2)=2),FebDom1+2,\"\"))","v":""},{"$f":"IF(DAY(FebDom1)=1,\"\",IF(AND(YEAR(FebDom1+3)=AñoCalendario,MONTH(FebDom1+3)=2),FebDom1+3,\"\"))","v":""},{"$f":"IF(DAY(FebDom1)=1,\"\",IF(AND(YEAR(FebDom1+4)=AñoCalendario,MONTH(FebDom1+4)=2),FebDom1+4,\"\"))","v":""},{"$f":"IF(DAY(FebDom1)=1,\"\",IF(AND(YEAR(FebDom1+5)=AñoCalendario,MONTH(FebDom1+5)=2),FebDom1+5,\"\"))","v":"2019-02-01"},{"$f":"IF(DAY(FebDom1)=1,\"\",IF(AND(YEAR(FebDom1+6)=AñoCalendario,MONTH(FebDom1+6)=2),FebDom1+6,\"\"))","v":"2019-02-02"},{"$f":"IF(DAY(FebDom1)=1,IF(AND(YEAR(FebDom1)=AñoCalendario,MONTH(FebDom1)=2),FebDom1,\"\"),IF(AND(YEAR(FebDom1+7)=AñoCalendario,MONTH(FebDom1+7)=2),FebDom1+7,\"\"))","v":"2019-02-03"},null,null,{"$f":"IF(DAY(MarDom1)=1,\"\",IF(AND(YEAR(MarDom1+1)=AñoCalendario,MONTH(MarDom1+1)=3),MarDom1+1,\"\"))","v":""},{"$f":"IF(DAY(MarDom1)=1,\"\",IF(AND(YEAR(MarDom1+2)=AñoCalendario,MONTH(MarDom1+2)=3),MarDom1+2,\"\"))","v":""},{"$f":"IF(DAY(MarDom1)=1,\"\",IF(AND(YEAR(MarDom1+3)=AñoCalendario,MONTH(MarDom1+3)=3),MarDom1+3,\"\"))","v":""},{"$f":"IF(DAY(MarDom1)=1,\"\",IF(AND(YEAR(MarDom1+4)=AñoCalendario,MONTH(MarDom1+4)=3),MarDom1+4,\"\"))","v":""},{"$f":"IF(DAY(MarDom1)=1,\"\",IF(AND(YEAR(MarDom1+5)=AñoCalendario,MONTH(MarDom1+5)=3),MarDom1+5,\"\"))","v":"2019-03-01"},{"$f":"IF(DAY(MarDom1)=1,\"\",IF(AND(YEAR(MarDom1+6)=AñoCalendario,MONTH(MarDom1+6)=3),MarDom1+6,\"\"))","v":"2019-03-02"},{"$f":"IF(DAY(MarDom1)=1,IF(AND(YEAR(MarDom1)=AñoCalendario,MONTH(MarDom1)=3),MarDom1,\"\"),IF(AND(YEAR(MarDom1+7)=AñoCalendario,MONTH(MarDom1+7)=3),MarDom1+7,\"\"))","v":"2019-03-03"},null,null,{"$f":"IF(DAY(AbrDom1)=1,\"\",IF(AND(YEAR(AbrDom1+1)=AñoCalendario,MONTH(AbrDom1+1)=4),AbrDom1+1,\"\"))","v":"2019-04-01"},{"$f":"IF(DAY(AbrDom1)=1,\"\",IF(AND(YEAR(AbrDom1+2)=AñoCalendario,MONTH(AbrDom1+2)=4),AbrDom1+2,\"\"))","v":"2019-04-02"},{"$f":"IF(DAY(AbrDom1)=1,\"\",IF(AND(YEAR(AbrDom1+3)=AñoCalendario,MONTH(AbrDom1+3)=4),AbrDom1+3,\"\"))","v":"2019-04-03"},{"$f":"IF(DAY(AbrDom1)=1,\"\",IF(AND(YEAR(AbrDom1+4)=AñoCalendario,MONTH(AbrDom1+4)=4),AbrDom1+4,\"\"))","v":"2019-04-04"},{"$f":"IF(DAY(AbrDom1)=1,\"\",IF(AND(YEAR(AbrDom1+5)=AñoCalendario,MONTH(AbrDom1+5)=4),AbrDom1+5,\"\"))","v":"2019-04-05"},{"$f":"IF(DAY(AbrDom1)=1,\"\",IF(AND(YEAR(AbrDom1+6)=AñoCalendario,MONTH(AbrDom1+6)=4),AbrDom1+6,\"\"))","v":"2019-04-06"},{"$f":"IF(DAY(AbrDom1)=1,IF(AND(YEAR(AbrDom1)=AñoCalendario,MONTH(AbrDom1)=4),AbrDom1,\"\"),IF(AND(YEAR(AbrDom1+7)=AñoCalendario,MONTH(AbrDom1+7)=4),AbrDom1+7,\"\"))","v":"2019-04-07"}]
[null,null,{"$f":"IF(DAY(EneDom1)=1,IF(AND(YEAR(EneDom1+1)=AñoCalendario,MONTH(EneDom1+1)=1),EneDom1+1,\"\"),IF(AND(YEAR(EneDom1+8)=AñoCalendario,MONTH(EneDom1+8)=1),EneDom1+8,\"\"))","v":"2019-01-07"},{"$f":"IF(DAY(EneDom1)=1,IF(AND(YEAR(EneDom1+2)=AñoCalendario,MONTH(EneDom1+2)=1),EneDom1+2,\"\"),IF(AND(YEAR(EneDom1+9)=AñoCalendario,MONTH(EneDom1+9)=1),EneDom1+9,\"\"))","v":"2019-01-08"},{"$f":"IF(DAY(EneDom1)=1,IF(AND(YEAR(EneDom1+3)=AñoCalendario,MONTH(EneDom1+3)=1),EneDom1+3,\"\"),IF(AND(YEAR(EneDom1+10)=AñoCalendario,MONTH(EneDom1+10)=1),EneDom1+10,\"\"))","v":"2019-01-09"},{"$f":"IF(DAY(EneDom1)=1,IF(AND(YEAR(EneDom1+4)=AñoCalendario,MONTH(EneDom1+4)=1),EneDom1+4,\"\"),IF(AND(YEAR(EneDom1+11)=AñoCalendario,MONTH(EneDom1+11)=1),EneDom1+11,\"\"))","v":"2019-01-10"},{"$f":"IF(DAY(EneDom1)=1,IF(AND(YEAR(EneDom1+5)=AñoCalendario,MONTH(EneDom1+5)=1),EneDom1+5,\"\"),IF(AND(YEAR(EneDom1+12)=AñoCalendario,MONTH(EneDom1+12)=1),EneDom1+12,\"\"))","v":"2019-01-11"},{"$f":"IF(DAY(EneDom1)=1,IF(AND(YEAR(EneDom1+6)=AñoCalendario,MONTH(EneDom1+6)=1),EneDom1+6,\"\"),IF(AND(YEAR(EneDom1+13)=AñoCalendario,MONTH(EneDom1+13)=1),EneDom1+13,\"\"))","v":"2019-01-12"},{"$f":"IF(DAY(EneDom1)=1,IF(AND(YEAR(EneDom1+7)=AñoCalendario,MONTH(EneDom1+7)=1),EneDom1+7,\"\"),IF(AND(YEAR(EneDom1+14)=AñoCalendario,MONTH(EneDom1+14)=1),EneDom1+14,\"\"))","v":"2019-01-13"},null,null,{"$f":"IF(DAY(FebDom1)=1,IF(AND(YEAR(FebDom1+1)=AñoCalendario,MONTH(FebDom1+1)=2),FebDom1+1,\"\"),IF(AND(YEAR(FebDom1+8)=AñoCalendario,MONTH(FebDom1+8)=2),FebDom1+8,\"\"))","v":"2019-02-04"},{"$f":"IF(DAY(FebDom1)=1,IF(AND(YEAR(FebDom1+2)=AñoCalendario,MONTH(FebDom1+2)=2),FebDom1+2,\"\"),IF(AND(YEAR(FebDom1+9)=AñoCalendario,MONTH(FebDom1+9)=2),FebDom1+9,\"\"))","v":"2019-02-05"},{"$f":"IF(DAY(FebDom1)=1,IF(AND(YEAR(FebDom1+3)=AñoCalendario,MONTH(FebDom1+3)=2),FebDom1+3,\"\"),IF(AND(YEAR(FebDom1+10)=AñoCalendario,MONTH(FebDom1+10)=2),FebDom1+10,\"\"))","v":"2019-02-06"},{"$f":"IF(DAY(FebDom1)=1,IF(AND(YEAR(FebDom1+4)=AñoCalendario,MONTH(FebDom1+4)=2),FebDom1+4,\"\"),IF(AND(YEAR(FebDom1+11)=AñoCalendario,MONTH(FebDom1+11)=2),FebDom1+11,\"\"))","v":"2019-02-07"},{"$f":"IF(DAY(FebDom1)=1,IF(AND(YEAR(FebDom1+5)=AñoCalendario,MONTH(FebDom1+5)=2),FebDom1+5,\"\"),IF(AND(YEAR(FebDom1+12)=AñoCalendario,MONTH(FebDom1+12)=2),FebDom1+12,\"\"))","v":"2019-02-08"},{"$f":"IF(DAY(FebDom1)=1,IF(AND(YEAR(FebDom1+6)=AñoCalendario,MONTH(FebDom1+6)=2),FebDom1+6,\"\"),IF(AND(YEAR(FebDom1+13)=AñoCalendario,MONTH(FebDom1+13)=2),FebDom1+13,\"\"))","v":"2019-02-09"},{"$f":"IF(DAY(FebDom1)=1,IF(AND(YEAR(FebDom1+7)=AñoCalendario,MONTH(FebDom1+7)=2),FebDom1+7,\"\"),IF(AND(YEAR(FebDom1+14)=AñoCalendario,MONTH(FebDom1+14)=2),FebDom1+14,\"\"))","v":"2019-02-10"},null,null,{"$f":"IF(DAY(MarDom1)=1,IF(AND(YEAR(MarDom1+1)=AñoCalendario,MONTH(MarDom1+1)=3),MarDom1+1,\"\"),IF(AND(YEAR(MarDom1+8)=AñoCalendario,MONTH(MarDom1+8)=3),MarDom1+8,\"\"))","v":"2019-03-04"},{"$f":"IF(DAY(MarDom1)=1,IF(AND(YEAR(MarDom1+2)=AñoCalendario,MONTH(MarDom1+2)=3),MarDom1+2,\"\"),IF(AND(YEAR(MarDom1+9)=AñoCalendario,MONTH(MarDom1+9)=3),MarDom1+9,\"\"))","v":"2019-03-05"},{"$f":"IF(DAY(MarDom1)=1,IF(AND(YEAR(MarDom1+3)=AñoCalendario,MONTH(MarDom1+3)=3),MarDom1+3,\"\"),IF(AND(YEAR(MarDom1+10)=AñoCalendario,MONTH(MarDom1+10)=3),MarDom1+10,\"\"))","v":"2019-03-06"},{"$f":"IF(DAY(MarDom1)=1,IF(AND(YEAR(MarDom1+4)=AñoCalendario,MONTH(MarDom1+4)=3),MarDom1+4,\"\"),IF(AND(YEAR(MarDom1+11)=AñoCalendario,MONTH(MarDom1+11)=3),MarDom1+11,\"\"))","v":"2019-03-07"},{"$f":"IF(DAY(MarDom1)=1,IF(AND(YEAR(MarDom1+5)=AñoCalendario,MONTH(MarDom1+5)=3),MarDom1+5,\"\"),IF(AND(YEAR(MarDom1+12)=AñoCalendario,MONTH(MarDom1+12)=3),MarDom1+12,\"\"))","v":"2019-03-08"},{"$f":"IF(DAY(MarDom1)=1,IF(AND(YEAR(MarDom1+6)=AñoCalendario,MONTH(MarDom1+6)=3),MarDom1+6,\"\"),IF(AND(YEAR(MarDom1+13)=AñoCalendario,MONTH(MarDom1+13)=3),MarDom1+13,\"\"))","v":"2019-03-09"},{"$f":"IF(DAY(MarDom1)=1,IF(AND(YEAR(MarDom1+7)=AñoCalendario,MONTH(MarDom1+7)=3),MarDom1+7,\"\"),IF(AND(YEAR(MarDom1+14)=AñoCalendario,MONTH(MarDom1+14)=3),MarDom1+14,\"\"))","v":"2019-03-10"},null,null,{"$f":"IF(DAY(AbrDom1)=1,IF(AND(YEAR(AbrDom1+1)=AñoCalendario,MONTH(AbrDom1+1)=4),AbrDom1+1,\"\"),IF(AND(YEAR(AbrDom1+8)=AñoCalendario,MONTH(AbrDom1+8)=4),AbrDom1+8,\"\"))","v":"2019-04-08"},{"$f":"IF(DAY(AbrDom1)=1,IF(AND(YEAR(AbrDom1+2)=AñoCalendario,MONTH(AbrDom1+2)=4),AbrDom1+2,\"\"),IF(AND(YEAR(AbrDom1+9)=AñoCalendario,MONTH(AbrDom1+9)=4),AbrDom1+9,\"\"))","v":"2019-04-09"},{"$f":"IF(DAY(AbrDom1)=1,IF(AND(YEAR(AbrDom1+3)=AñoCalendario,MONTH(AbrDom1+3)=4),AbrDom1+3,\"\"),IF(AND(YEAR(AbrDom1+10)=AñoCalendario,MONTH(AbrDom1+10)=4),AbrDom1+10,\"\"))","v":"2019-04-10"},{"$f":"IF(DAY(AbrDom1)=1,IF(AND(YEAR(AbrDom1+4)=AñoCalendario,MONTH(AbrDom1+4)=4),AbrDom1+4,\"\"),IF(AND(YEAR(AbrDom1+11)=AñoCalendario,MONTH(AbrDom1+11)=4),AbrDom1+11,\"\"))","v":"2019-04-11"},{"$f":"IF(DAY(AbrDom1)=1,IF(AND(YEAR(AbrDom1+5)=AñoCalendario,MONTH(AbrDom1+5)=4),AbrDom1+5,\"\"),IF(AND(YEAR(AbrDom1+12)=AñoCalendario,MONTH(AbrDom1+12)=4),AbrDom1+12,\"\"))","v":"2019-04-12"},{"$f":"IF(DAY(AbrDom1)=1,IF(AND(YEAR(AbrDom1+6)=AñoCalendario,MONTH(AbrDom1+6)=4),AbrDom1+6,\"\"),IF(AND(YEAR(AbrDom1+13)=AñoCalendario,MONTH(AbrDom1+13)=4),AbrDom1+13,\"\"))","v":"2019-04-13"},{"$f":"IF(DAY(AbrDom1)=1,IF(AND(YEAR(AbrDom1+7)=AñoCalendario,MONTH(AbrDom1+7)=4),AbrDom1+7,\"\"),IF(AND(YEAR(AbrDom1+14)=AñoCalendario,MONTH(AbrDom1+14)=4),AbrDom1+14,\"\"))","v":"2019-04-14"}]
[null,null,{"$f":"IF(DAY(EneDom1)=1,IF(AND(YEAR(EneDom1+8)=AñoCalendario,MONTH(EneDom1+8)=1),EneDom1+8,\"\"),IF(AND(YEAR(EneDom1+15)=AñoCalendario,MONTH(EneDom1+15)=1),EneDom1+15,\"\"))","v":"2019-01-14"},{"$f":"IF(DAY(EneDom1)=1,IF(AND(YEAR(EneDom1+9)=AñoCalendario,MONTH(EneDom1+9)=1),EneDom1+9,\"\"),IF(AND(YEAR(EneDom1+16)=AñoCalendario,MONTH(EneDom1+16)=1),EneDom1+16,\"\"))","v":"2019-01-15"},{"$f":"IF(DAY(EneDom1)=1,IF(AND(YEAR(EneDom1+10)=AñoCalendario,MONTH(EneDom1+10)=1),EneDom1+10,\"\"),IF(AND(YEAR(EneDom1+17)=AñoCalendario,MONTH(EneDom1+17)=1),EneDom1+17,\"\"))","v":"2019-01-16"},{"$f":"IF(DAY(EneDom1)=1,IF(AND(YEAR(EneDom1+11)=AñoCalendario,MONTH(EneDom1+11)=1),EneDom1+11,\"\"),IF(AND(YEAR(EneDom1+18)=AñoCalendario,MONTH(EneDom1+18)=1),EneDom1+18,\"\"))","v":"2019-01-17"},{"$f":"IF(DAY(EneDom1)=1,IF(AND(YEAR(EneDom1+12)=AñoCalendario,MONTH(EneDom1+12)=1),EneDom1+12,\"\"),IF(AND(YEAR(EneDom1+19)=AñoCalendario,MONTH(EneDom1+19)=1),EneDom1+19,\"\"))","v":"2019-01-18"},{"$f":"IF(DAY(EneDom1)=1,IF(AND(YEAR(EneDom1+13)=AñoCalendario,MONTH(EneDom1+13)=1),EneDom1+13,\"\"),IF(AND(YEAR(EneDom1+20)=AñoCalendario,MONTH(EneDom1+20)=1),EneDom1+20,\"\"))","v":"2019-01-19"},{"$f":"IF(DAY(EneDom1)=1,IF(AND(YEAR(EneDom1+14)=AñoCalendario,MONTH(EneDom1+14)=1),EneDom1+14,\"\"),IF(AND(YEAR(EneDom1+21)=AñoCalendario,MONTH(EneDom1+21)=1),EneDom1+21,\"\"))","v":"2019-01-20"},null,null,{"$f":"IF(DAY(FebDom1)=1,IF(AND(YEAR(FebDom1+8)=AñoCalendario,MONTH(FebDom1+8)=2),FebDom1+8,\"\"),IF(AND(YEAR(FebDom1+15)=AñoCalendario,MONTH(FebDom1+15)=2),FebDom1+15,\"\"))","v":"2019-02-11"},{"$f":"IF(DAY(FebDom1)=1,IF(AND(YEAR(FebDom1+9)=AñoCalendario,MONTH(FebDom1+9)=2),FebDom1+9,\"\"),IF(AND(YEAR(FebDom1+16)=AñoCalendario,MONTH(FebDom1+16)=2),FebDom1+16,\"\"))","v":"2019-02-12"},{"$f":"IF(DAY(FebDom1)=1,IF(AND(YEAR(FebDom1+10)=AñoCalendario,MONTH(FebDom1+10)=2),FebDom1+10,\"\"),IF(AND(YEAR(FebDom1+17)=AñoCalendario,MONTH(FebDom1+17)=2),FebDom1+17,\"\"))","v":"2019-02-13"},{"$f":"IF(DAY(FebDom1)=1,IF(AND(YEAR(FebDom1+11)=AñoCalendario,MONTH(FebDom1+11)=2),FebDom1+11,\"\"),IF(AND(YEAR(FebDom1+18)=AñoCalendario,MONTH(FebDom1+18)=2),FebDom1+18,\"\"))","v":"2019-02-14"},{"$f":"IF(DAY(FebDom1)=1,IF(AND(YEAR(FebDom1+12)=AñoCalendario,MONTH(FebDom1+12)=2),FebDom1+12,\"\"),IF(AND(YEAR(FebDom1+19)=AñoCalendario,MONTH(FebDom1+19)=2),FebDom1+19,\"\"))","v":"2019-02-15"},{"$f":"IF(DAY(FebDom1)=1,IF(AND(YEAR(FebDom1+13)=AñoCalendario,MONTH(FebDom1+13)=2),FebDom1+13,\"\"),IF(AND(YEAR(FebDom1+20)=AñoCalendario,MONTH(FebDom1+20)=2),FebDom1+20,\"\"))","v":"2019-02-16"},{"$f":"IF(DAY(FebDom1)=1,IF(AND(YEAR(FebDom1+14)=AñoCalendario,MONTH(FebDom1+14)=2),FebDom1+14,\"\"),IF(AND(YEAR(FebDom1+21)=AñoCalendario,MONTH(FebDom1+21)=2),FebDom1+21,\"\"))","v":"2019-02-17"},null,null,{"$f":"IF(DAY(MarDom1)=1,IF(AND(YEAR(MarDom1+8)=AñoCalendario,MONTH(MarDom1+8)=3),MarDom1+8,\"\"),IF(AND(YEAR(MarDom1+15)=AñoCalendario,MONTH(MarDom1+15)=3),MarDom1+15,\"\"))","v":"2019-03-11"},{"$f":"IF(DAY(MarDom1)=1,IF(AND(YEAR(MarDom1+9)=AñoCalendario,MONTH(MarDom1+9)=3),MarDom1+9,\"\"),IF(AND(YEAR(MarDom1+16)=AñoCalendario,MONTH(MarDom1+16)=3),MarDom1+16,\"\"))","v":"2019-03-12"},{"$f":"IF(DAY(MarDom1)=1,IF(AND(YEAR(MarDom1+10)=AñoCalendario,MONTH(MarDom1+10)=3),MarDom1+10,\"\"),IF(AND(YEAR(MarDom1+17)=AñoCalendario,MONTH(MarDom1+17)=3),MarDom1+17,\"\"))","v":"2019-03-13"},{"$f":"IF(DAY(MarDom1)=1,IF(AND(YEAR(MarDom1+11)=AñoCalendario,MONTH(MarDom1+11)=3),MarDom1+11,\"\"),IF(AND(YEAR(MarDom1+18)=AñoCalendario,MONTH(MarDom1+18)=3),MarDom1+18,\"\"))","v":"2019-03-14"},{"$f":"IF(DAY(MarDom1)=1,IF(AND(YEAR(MarDom1+12)=AñoCalendario,MONTH(MarDom1+12)=3),MarDom1+12,\"\"),IF(AND(YEAR(MarDom1+19)=AñoCalendario,MONTH(MarDom1+19)=3),MarDom1+19,\"\"))","v":"2019-03-15"},{"$f":"IF(DAY(MarDom1)=1,IF(AND(YEAR(MarDom1+13)=AñoCalendario,MONTH(MarDom1+13)=3),MarDom1+13,\"\"),IF(AND(YEAR(MarDom1+20)=AñoCalendario,MONTH(MarDom1+20)=3),MarDom1+20,\"\"))","v":"2019-03-16"},{"$f":"IF(DAY(MarDom1)=1,IF(AND(YEAR(MarDom1+14)=AñoCalendario,MONTH(MarDom1+14)=3),MarDom1+14,\"\"),IF(AND(YEAR(MarDom1+21)=AñoCalendario,MONTH(MarDom1+21)=3),MarDom1+21,\"\"))","v":"2019-03-17"},null,null,{"$f":"IF(DAY(AbrDom1)=1,IF(AND(YEAR(AbrDom1+8)=AñoCalendario,MONTH(AbrDom1+8)=4),AbrDom1+8,\"\"),IF(AND(YEAR(AbrDom1+15)=AñoCalendario,MONTH(AbrDom1+15)=4),AbrDom1+15,\"\"))","v":"2019-04-15"},{"$f":"IF(DAY(AbrDom1)=1,IF(AND(YEAR(AbrDom1+9)=AñoCalendario,MONTH(AbrDom1+9)=4),AbrDom1+9,\"\"),IF(AND(YEAR(AbrDom1+16)=AñoCalendario,MONTH(AbrDom1+16)=4),AbrDom1+16,\"\"))","v":"2019-04-16"},{"$f":"IF(DAY(AbrDom1)=1,IF(AND(YEAR(AbrDom1+10)=AñoCalendario,MONTH(AbrDom1+10)=4),AbrDom1+10,\"\"),IF(AND(YEAR(AbrDom1+17)=AñoCalendario,MONTH(AbrDom1+17)=4),AbrDom1+17,\"\"))","v":"2019-04-17"},{"$f":"IF(DAY(AbrDom1)=1,IF(AND(YEAR(AbrDom1+11)=AñoCalendario,MONTH(AbrDom1+11)=4),AbrDom1+11,\"\"),IF(AND(YEAR(AbrDom1+18)=AñoCalendario,MONTH(AbrDom1+18)=4),AbrDom1+18,\"\"))","v":"2019-04-18"},{"$f":"IF(DAY(AbrDom1)=1,IF(AND(YEAR(AbrDom1+12)=AñoCalendario,MONTH(AbrDom1+12)=4),AbrDom1+12,\"\"),IF(AND(YEAR(AbrDom1+19)=AñoCalendario,MONTH(AbrDom1+19)=4),AbrDom1+19,\"\"))","v":"2019-04-19"},{"$f":"IF(DAY(AbrDom1)=1,IF(AND(YEAR(AbrDom1+13)=AñoCalendario,MONTH(AbrDom1+13)=4),AbrDom1+13,\"\"),IF(AND(YEAR(AbrDom1+20)=AñoCalendario,MONTH(AbrDom1+20)=4),AbrDom1+20,\"\"))","v":"2019-04-20"},{"$f":"IF(DAY(AbrDom1)=1,IF(AND(YEAR(AbrDom1+14)=AñoCalendario,MONTH(AbrDom1+14)=4),AbrDom1+14,\"\"),IF(AND(YEAR(AbrDom1+21)=AñoCalendario,MONTH(AbrDom1+21)=4),AbrDom1+21,\"\"))","v":"2019-04-21"}]
[null,null,{"$f":"IF(DAY(EneDom1)=1,IF(AND(YEAR(EneDom1+15)=AñoCalendario,MONTH(EneDom1+15)=1),EneDom1+15,\"\"),IF(AND(YEAR(EneDom1+22)=AñoCalendario,MONTH(EneDom1+22)=1),EneDom1+22,\"\"))","v":"2019-01-21"},{"$f":"IF(DAY(EneDom1)=1,IF(AND(YEAR(EneDom1+16)=AñoCalendario,MONTH(EneDom1+16)=1),EneDom1+16,\"\"),IF(AND(YEAR(EneDom1+23)=AñoCalendario,MONTH(EneDom1+23)=1),EneDom1+23,\"\"))","v":"2019-01-22"},{"$f":"IF(DAY(EneDom1)=1,IF(AND(YEAR(EneDom1+17)=AñoCalendario,MONTH(EneDom1+17)=1),EneDom1+17,\"\"),IF(AND(YEAR(EneDom1+24)=AñoCalendario,MONTH(EneDom1+24)=1),EneDom1+24,\"\"))","v":"2019-01-23"},{"$f":"IF(DAY(EneDom1)=1,IF(AND(YEAR(EneDom1+18)=AñoCalendario,MONTH(EneDom1+18)=1),EneDom1+18,\"\"),IF(AND(YEAR(EneDom1+25)=AñoCalendario,MONTH(EneDom1+25)=1),EneDom1+25,\"\"))","v":"2019-01-24"},{"$f":"IF(DAY(EneDom1)=1,IF(AND(YEAR(EneDom1+19)=AñoCalendario,MONTH(EneDom1+19)=1),EneDom1+19,\"\"),IF(AND(YEAR(EneDom1+26)=AñoCalendario,MONTH(EneDom1+26)=1),EneDom1+26,\"\"))","v":"2019-01-25"},{"$f":"IF(DAY(EneDom1)=1,IF(AND(YEAR(EneDom1+20)=AñoCalendario,MONTH(EneDom1+20)=1),EneDom1+20,\"\"),IF(AND(YEAR(EneDom1+27)=AñoCalendario,MONTH(EneDom1+27)=1),EneDom1+27,\"\"))","v":"2019-01-26"},{"$f":"IF(DAY(EneDom1)=1,IF(AND(YEAR(EneDom1+21)=AñoCalendario,MONTH(EneDom1+21)=1),EneDom1+21,\"\"),IF(AND(YEAR(EneDom1+28)=AñoCalendario,MONTH(EneDom1+28)=1),EneDom1+28,\"\"))","v":"2019-01-27"},null,null,{"$f":"IF(DAY(FebDom1)=1,IF(AND(YEAR(FebDom1+15)=AñoCalendario,MONTH(FebDom1+15)=2),FebDom1+15,\"\"),IF(AND(YEAR(FebDom1+22)=AñoCalendario,MONTH(FebDom1+22)=2),FebDom1+22,\"\"))","v":"2019-02-18"},{"$f":"IF(DAY(FebDom1)=1,IF(AND(YEAR(FebDom1+16)=AñoCalendario,MONTH(FebDom1+16)=2),FebDom1+16,\"\"),IF(AND(YEAR(FebDom1+23)=AñoCalendario,MONTH(FebDom1+23)=2),FebDom1+23,\"\"))","v":"2019-02-19"},{"$f":"IF(DAY(FebDom1)=1,IF(AND(YEAR(FebDom1+17)=AñoCalendario,MONTH(FebDom1+17)=2),FebDom1+17,\"\"),IF(AND(YEAR(FebDom1+24)=AñoCalendario,MONTH(FebDom1+24)=2),FebDom1+24,\"\"))","v":"2019-02-20"},{"$f":"IF(DAY(FebDom1)=1,IF(AND(YEAR(FebDom1+18)=AñoCalendario,MONTH(FebDom1+18)=2),FebDom1+18,\"\"),IF(AND(YEAR(FebDom1+25)=AñoCalendario,MONTH(FebDom1+25)=2),FebDom1+25,\"\"))","v":"2019-02-21"},{"$f":"IF(DAY(FebDom1)=1,IF(AND(YEAR(FebDom1+19)=AñoCalendario,MONTH(FebDom1+19)=2),FebDom1+19,\"\"),IF(AND(YEAR(FebDom1+26)=AñoCalendario,MONTH(FebDom1+26)=2),FebDom1+26,\"\"))","v":"2019-02-22"},{"$f":"IF(DAY(FebDom1)=1,IF(AND(YEAR(FebDom1+20)=AñoCalendario,MONTH(FebDom1+20)=2),FebDom1+20,\"\"),IF(AND(YEAR(FebDom1+27)=AñoCalendario,MONTH(FebDom1+27)=2),FebDom1+27,\"\"))","v":"2019-02-23"},{"$f":"IF(DAY(FebDom1)=1,IF(AND(YEAR(FebDom1+21)=AñoCalendario,MONTH(FebDom1+21)=2),FebDom1+21,\"\"),IF(AND(YEAR(FebDom1+28)=AñoCalendario,MONTH(FebDom1+28)=2),FebDom1+28,\"\"))","v":"2019-02-24"},null,null,{"$f":"IF(DAY(MarDom1)=1,IF(AND(YEAR(MarDom1+15)=AñoCalendario,MONTH(MarDom1+15)=3),MarDom1+15,\"\"),IF(AND(YEAR(MarDom1+22)=AñoCalendario,MONTH(MarDom1+22)=3),MarDom1+22,\"\"))","v":"2019-03-18"},{"$f":"IF(DAY(MarDom1)=1,IF(AND(YEAR(MarDom1+16)=AñoCalendario,MONTH(MarDom1+16)=3),MarDom1+16,\"\"),IF(AND(YEAR(MarDom1+23)=AñoCalendario,MONTH(MarDom1+23)=3),MarDom1+23,\"\"))","v":"2019-03-19"},{"$f":"IF(DAY(MarDom1)=1,IF(AND(YEAR(MarDom1+17)=AñoCalendario,MONTH(MarDom1+17)=3),MarDom1+17,\"\"),IF(AND(YEAR(MarDom1+24)=AñoCalendario,MONTH(MarDom1+24)=3),MarDom1+24,\"\"))","v":"2019-03-20"},{"$f":"IF(DAY(MarDom1)=1,IF(AND(YEAR(MarDom1+18)=AñoCalendario,MONTH(MarDom1+18)=3),MarDom1+18,\"\"),IF(AND(YEAR(MarDom1+25)=AñoCalendario,MONTH(MarDom1+25)=3),MarDom1+25,\"\"))","v":"2019-03-21"},{"$f":"IF(DAY(MarDom1)=1,IF(AND(YEAR(MarDom1+19)=AñoCalendario,MONTH(MarDom1+19)=3),MarDom1+19,\"\"),IF(AND(YEAR(MarDom1+26)=AñoCalendario,MONTH(MarDom1+26)=3),MarDom1+26,\"\"))","v":"2019-03-22"},{"$f":"IF(DAY(MarDom1)=1,IF(AND(YEAR(MarDom1+20)=AñoCalendario,MONTH(MarDom1+20)=3),MarDom1+20,\"\"),IF(AND(YEAR(MarDom1+27)=AñoCalendario,MONTH(MarDom1+27)=3),MarDom1+27,\"\"))","v":"2019-03-23"},{"$f":"IF(DAY(MarDom1)=1,IF(AND(YEAR(MarDom1+21)=AñoCalendario,MONTH(MarDom1+21)=3),MarDom1+21,\"\"),IF(AND(YEAR(MarDom1+28)=AñoCalendario,MONTH(MarDom1+28)=3),MarDom1+28,\"\"))","v":"2019-03-24"},null,null,{"$f":"IF(DAY(AbrDom1)=1,IF(AND(YEAR(AbrDom1+15)=AñoCalendario,MONTH(AbrDom1+15)=4),AbrDom1+15,\"\"),IF(AND(YEAR(AbrDom1+22)=AñoCalendario,MONTH(AbrDom1+22)=4),AbrDom1+22,\"\"))","v":"2019-04-22"},{"$f":"IF(DAY(AbrDom1)=1,IF(AND(YEAR(AbrDom1+16)=AñoCalendario,MONTH(AbrDom1+16)=4),AbrDom1+16,\"\"),IF(AND(YEAR(AbrDom1+23)=AñoCalendario,MONTH(AbrDom1+23)=4),AbrDom1+23,\"\"))","v":"2019-04-23"},{"$f":"IF(DAY(AbrDom1)=1,IF(AND(YEAR(AbrDom1+17)=AñoCalendario,MONTH(AbrDom1+17)=4),AbrDom1+17,\"\"),IF(AND(YEAR(AbrDom1+24)=AñoCalendario,MONTH(AbrDom1+24)=4),AbrDom1+24,\"\"))","v":"2019-04-24"},{"$f":"IF(DAY(AbrDom1)=1,IF(AND(YEAR(AbrDom1+18)=AñoCalendario,MONTH(AbrDom1+18)=4),AbrDom1+18,\"\"),IF(AND(YEAR(AbrDom1+25)=AñoCalendario,MONTH(AbrDom1+25)=4),AbrDom1+25,\"\"))","v":"2019-04-25"},{"$f":"IF(DAY(AbrDom1)=1,IF(AND(YEAR(AbrDom1+19)=AñoCalendario,MONTH(AbrDom1+19)=4),AbrDom1+19,\"\"),IF(AND(YEAR(AbrDom1+26)=AñoCalendario,MONTH(AbrDom1+26)=4),AbrDom1+26,\"\"))","v":"2019-04-26"},{"$f":"IF(DAY(AbrDom1)=1,IF(AND(YEAR(AbrDom1+20)=AñoCalendario,MONTH(AbrDom1+20)=4),AbrDom1+20,\"\"),IF(AND(YEAR(AbrDom1+27)=AñoCalendario,MONTH(AbrDom1+27)=4),AbrDom1+27,\"\"))","v":"2019-04-27"},{"$f":"IF(DAY(AbrDom1)=1,IF(AND(YEAR(AbrDom1+21)=AñoCalendario,MONTH(AbrDom1+21)=4),AbrDom1+21,\"\"),IF(AND(YEAR(AbrDom1+28)=AñoCalendario,MONTH(AbrDom1+28)=4),AbrDom1+28,\"\"))","v":"2019-04-28"}]
[null,null,{"$f":"IF(DAY(EneDom1)=1,IF(AND(YEAR(EneDom1+22)=AñoCalendario,MONTH(EneDom1+22)=1),EneDom1+22,\"\"),IF(AND(YEAR(EneDom1+29)=AñoCalendario,MONTH(EneDom1+29)=1),EneDom1+29,\"\"))","v":"2019-01-28"},{"$f":"IF(DAY(EneDom1)=1,IF(AND(YEAR(EneDom1+23)=AñoCalendario,MONTH(EneDom1+23)=1),EneDom1+23,\"\"),IF(AND(YEAR(EneDom1+30)=AñoCalendario,MONTH(EneDom1+30)=1),EneDom1+30,\"\"))","v":"2019-01-29"},{"$f":"IF(DAY(EneDom1)=1,IF(AND(YEAR(EneDom1+24)=AñoCalendario,MONTH(EneDom1+24)=1),EneDom1+24,\"\"),IF(AND(YEAR(EneDom1+31)=AñoCalendario,MONTH(EneDom1+31)=1),EneDom1+31,\"\"))","v":"2019-01-30"},{"$f":"IF(DAY(EneDom1)=1,IF(AND(YEAR(EneDom1+25)=AñoCalendario,MONTH(EneDom1+25)=1),EneDom1+25,\"\"),IF(AND(YEAR(EneDom1+32)=AñoCalendario,MONTH(EneDom1+32)=1),EneDom1+32,\"\"))","v":"2019-01-31"},{"$f":"IF(DAY(EneDom1)=1,IF(AND(YEAR(EneDom1+26)=AñoCalendario,MONTH(EneDom1+26)=1),EneDom1+26,\"\"),IF(AND(YEAR(EneDom1+33)=AñoCalendario,MONTH(EneDom1+33)=1),EneDom1+33,\"\"))","v":""},{"$f":"IF(DAY(EneDom1)=1,IF(AND(YEAR(EneDom1+27)=AñoCalendario,MONTH(EneDom1+27)=1),EneDom1+27,\"\"),IF(AND(YEAR(EneDom1+34)=AñoCalendario,MONTH(EneDom1+34)=1),EneDom1+34,\"\"))","v":""},{"$f":"IF(DAY(EneDom1)=1,IF(AND(YEAR(EneDom1+28)=AñoCalendario,MONTH(EneDom1+28)=1),EneDom1+28,\"\"),IF(AND(YEAR(EneDom1+35)=AñoCalendario,MONTH(EneDom1+35)=1),EneDom1+35,\"\"))","v":""},null,null,{"$f":"IF(DAY(FebDom1)=1,IF(AND(YEAR(FebDom1+22)=AñoCalendario,MONTH(FebDom1+22)=2),FebDom1+22,\"\"),IF(AND(YEAR(FebDom1+29)=AñoCalendario,MONTH(FebDom1+29)=2),FebDom1+29,\"\"))","v":"2019-02-25"},{"$f":"IF(DAY(FebDom1)=1,IF(AND(YEAR(FebDom1+23)=AñoCalendario,MONTH(FebDom1+23)=2),FebDom1+23,\"\"),IF(AND(YEAR(FebDom1+30)=AñoCalendario,MONTH(FebDom1+30)=2),FebDom1+30,\"\"))","v":"2019-02-26"},{"$f":"IF(DAY(FebDom1)=1,IF(AND(YEAR(FebDom1+24)=AñoCalendario,MONTH(FebDom1+24)=2),FebDom1+24,\"\"),IF(AND(YEAR(FebDom1+31)=AñoCalendario,MONTH(FebDom1+31)=2),FebDom1+31,\"\"))","v":"2019-02-27"},{"$f":"IF(DAY(FebDom1)=1,IF(AND(YEAR(FebDom1+25)=AñoCalendario,MONTH(FebDom1+25)=2),FebDom1+25,\"\"),IF(AND(YEAR(FebDom1+32)=AñoCalendario,MONTH(FebDom1+32)=2),FebDom1+32,\"\"))","v":"2019-02-28"},{"$f":"IF(DAY(FebDom1)=1,IF(AND(YEAR(FebDom1+26)=AñoCalendario,MONTH(FebDom1+26)=2),FebDom1+26,\"\"),IF(AND(YEAR(FebDom1+33)=AñoCalendario,MONTH(FebDom1+33)=2),FebDom1+33,\"\"))","v":""},{"$f":"IF(DAY(FebDom1)=1,IF(AND(YEAR(FebDom1+27)=AñoCalendario,MONTH(FebDom1+27)=2),FebDom1+27,\"\"),IF(AND(YEAR(FebDom1+34)=AñoCalendario,MONTH(FebDom1+34)=2),FebDom1+34,\"\"))","v":""},{"$f":"IF(DAY(FebDom1)=1,IF(AND(YEAR(FebDom1+28)=AñoCalendario,MONTH(FebDom1+28)=2),FebDom1+28,\"\"),IF(AND(YEAR(FebDom1+35)=AñoCalendario,MONTH(FebDom1+35)=2),FebDom1+35,\"\"))","v":""},null,null,{"$f":"IF(DAY(MarDom1)=1,IF(AND(YEAR(MarDom1+22)=AñoCalendario,MONTH(MarDom1+22)=3),MarDom1+22,\"\"),IF(AND(YEAR(MarDom1+29)=AñoCalendario,MONTH(MarDom1+29)=3),MarDom1+29,\"\"))","v":"2019-03-25"},{"$f":"IF(DAY(MarDom1)=1,IF(AND(YEAR(MarDom1+23)=AñoCalendario,MONTH(MarDom1+23)=3),MarDom1+23,\"\"),IF(AND(YEAR(MarDom1+30)=AñoCalendario,MONTH(MarDom1+30)=3),MarDom1+30,\"\"))","v":"2019-03-26"},{"$f":"IF(DAY(MarDom1)=1,IF(AND(YEAR(MarDom1+24)=AñoCalendario,MONTH(MarDom1+24)=3),MarDom1+24,\"\"),IF(AND(YEAR(MarDom1+31)=AñoCalendario,MONTH(MarDom1+31)=3),MarDom1+31,\"\"))","v":"2019-03-27"},{"$f":"IF(DAY(MarDom1)=1,IF(AND(YEAR(MarDom1+25)=AñoCalendario,MONTH(MarDom1+25)=3),MarDom1+25,\"\"),IF(AND(YEAR(MarDom1+32)=AñoCalendario,MONTH(MarDom1+32)=3),MarDom1+32,\"\"))","v":"2019-03-28"},{"$f":"IF(DAY(MarDom1)=1,IF(AND(YEAR(MarDom1+26)=AñoCalendario,MONTH(MarDom1+26)=3),MarDom1+26,\"\"),IF(AND(YEAR(MarDom1+33)=AñoCalendario,MONTH(MarDom1+33)=3),MarDom1+33,\"\"))","v":"2019-03-29"},{"$f":"IF(DAY(MarDom1)=1,IF(AND(YEAR(MarDom1+27)=AñoCalendario,MONTH(MarDom1+27)=3),MarDom1+27,\"\"),IF(AND(YEAR(MarDom1+34)=AñoCalendario,MONTH(MarDom1+34)=3),MarDom1+34,\"\"))","v":"2019-03-30"},{"$f":"IF(DAY(MarDom1)=1,IF(AND(YEAR(MarDom1+28)=AñoCalendario,MONTH(MarDom1+28)=3),MarDom1+28,\"\"),IF(AND(YEAR(MarDom1+35)=AñoCalendario,MONTH(MarDom1+35)=3),MarDom1+35,\"\"))","v":"2019-03-31"},null,null,{"$f":"IF(DAY(AbrDom1)=1,IF(AND(YEAR(AbrDom1+22)=AñoCalendario,MONTH(AbrDom1+22)=4),AbrDom1+22,\"\"),IF(AND(YEAR(AbrDom1+29)=AñoCalendario,MONTH(AbrDom1+29)=4),AbrDom1+29,\"\"))","v":"2019-04-29"},{"$f":"IF(DAY(AbrDom1)=1,IF(AND(YEAR(AbrDom1+23)=AñoCalendario,MONTH(AbrDom1+23)=4),AbrDom1+23,\"\"),IF(AND(YEAR(AbrDom1+30)=AñoCalendario,MONTH(AbrDom1+30)=4),AbrDom1+30,\"\"))","v":"2019-04-30"},{"$f":"IF(DAY(AbrDom1)=1,IF(AND(YEAR(AbrDom1+24)=AñoCalendario,MONTH(AbrDom1+24)=4),AbrDom1+24,\"\"),IF(AND(YEAR(AbrDom1+31)=AñoCalendario,MONTH(AbrDom1+31)=4),AbrDom1+31,\"\"))","v":""},{"$f":"IF(DAY(AbrDom1)=1,IF(AND(YEAR(AbrDom1+25)=AñoCalendario,MONTH(AbrDom1+25)=4),AbrDom1+25,\"\"),IF(AND(YEAR(AbrDom1+32)=AñoCalendario,MONTH(AbrDom1+32)=4),AbrDom1+32,\"\"))","v":""},{"$f":"IF(DAY(AbrDom1)=1,IF(AND(YEAR(AbrDom1+26)=AñoCalendario,MONTH(AbrDom1+26)=4),AbrDom1+26,\"\"),IF(AND(YEAR(AbrDom1+33)=AñoCalendario,MONTH(AbrDom1+33)=4),AbrDom1+33,\"\"))","v":""},{"$f":"IF(DAY(AbrDom1)=1,IF(AND(YEAR(AbrDom1+27)=AñoCalendario,MONTH(AbrDom1+27)=4),AbrDom1+27,\"\"),IF(AND(YEAR(AbrDom1+34)=AñoCalendario,MONTH(AbrDom1+34)=4),AbrDom1+34,\"\"))","v":""},{"$f":"IF(DAY(AbrDom1)=1,IF(AND(YEAR(AbrDom1+28)=AñoCalendario,MONTH(AbrDom1+28)=4),AbrDom1+28,\"\"),IF(AND(YEAR(AbrDom1+35)=AñoCalendario,MONTH(AbrDom1+35)=4),AbrDom1+35,\"\"))","v":""}]
[null,null,{"$f":"IF(DAY(EneDom1)=1,IF(AND(YEAR(EneDom1+29)=AñoCalendario,MONTH(EneDom1+29)=1),EneDom1+29,\"\"),IF(AND(YEAR(EneDom1+36)=AñoCalendario,MONTH(EneDom1+36)=1),EneDom1+36,\"\"))","v":""},{"$f":"IF(DAY(EneDom1)=1,IF(AND(YEAR(EneDom1+30)=AñoCalendario,MONTH(EneDom1+30)=1),EneDom1+30,\"\"),IF(AND(YEAR(EneDom1+37)=AñoCalendario,MONTH(EneDom1+37)=1),EneDom1+37,\"\"))","v":""},{"$f":"IF(DAY(EneDom1)=1,IF(AND(YEAR(EneDom1+31)=AñoCalendario,MONTH(EneDom1+31)=1),EneDom1+31,\"\"),IF(AND(YEAR(EneDom1+38)=AñoCalendario,MONTH(EneDom1+38)=1),EneDom1+38,\"\"))","v":""},{"$f":"IF(DAY(EneDom1)=1,IF(AND(YEAR(EneDom1+32)=AñoCalendario,MONTH(EneDom1+32)=1),EneDom1+32,\"\"),IF(AND(YEAR(EneDom1+39)=AñoCalendario,MONTH(EneDom1+39)=1),EneDom1+39,\"\"))","v":""},{"$f":"IF(DAY(EneDom1)=1,IF(AND(YEAR(EneDom1+33)=AñoCalendario,MONTH(EneDom1+33)=1),EneDom1+33,\"\"),IF(AND(YEAR(EneDom1+40)=AñoCalendario,MONTH(EneDom1+40)=1),EneDom1+40,\"\"))","v":""},{"$f":"IF(DAY(EneDom1)=1,IF(AND(YEAR(EneDom1+34)=AñoCalendario,MONTH(EneDom1+34)=1),EneDom1+34,\"\"),IF(AND(YEAR(EneDom1+41)=AñoCalendario,MONTH(EneDom1+41)=1),EneDom1+41,\"\"))","v":""},{"$f":"IF(DAY(EneDom1)=1,IF(AND(YEAR(EneDom1+35)=AñoCalendario,MONTH(EneDom1+35)=1),EneDom1+35,\"\"),IF(AND(YEAR(EneDom1+42)=AñoCalendario,MONTH(EneDom1+42)=1),EneDom1+42,\"\"))","v":""},null,null,{"$f":"IF(DAY(FebDom1)=1,IF(AND(YEAR(FebDom1+29)=AñoCalendario,MONTH(FebDom1+29)=2),FebDom1+29,\"\"),IF(AND(YEAR(FebDom1+36)=AñoCalendario,MONTH(FebDom1+36)=2),FebDom1+36,\"\"))","v":""},{"$f":"IF(DAY(FebDom1)=1,IF(AND(YEAR(FebDom1+30)=AñoCalendario,MONTH(FebDom1+30)=2),FebDom1+30,\"\"),IF(AND(YEAR(FebDom1+37)=AñoCalendario,MONTH(FebDom1+37)=2),FebDom1+37,\"\"))","v":""},{"$f":"IF(DAY(FebDom1)=1,IF(AND(YEAR(FebDom1+31)=AñoCalendario,MONTH(FebDom1+31)=2),FebDom1+31,\"\"),IF(AND(YEAR(FebDom1+38)=AñoCalendario,MONTH(FebDom1+38)=2),FebDom1+38,\"\"))","v":""},{"$f":"IF(DAY(FebDom1)=1,IF(AND(YEAR(FebDom1+32)=AñoCalendario,MONTH(FebDom1+32)=2),FebDom1+32,\"\"),IF(AND(YEAR(FebDom1+39)=AñoCalendario,MONTH(FebDom1+39)=2),FebDom1+39,\"\"))","v":""},{"$f":"IF(DAY(FebDom1)=1,IF(AND(YEAR(FebDom1+33)=AñoCalendario,MONTH(FebDom1+33)=2),FebDom1+33,\"\"),IF(AND(YEAR(FebDom1+40)=AñoCalendario,MONTH(FebDom1+40)=2),FebDom1+40,\"\"))","v":""},{"$f":"IF(DAY(FebDom1)=1,IF(AND(YEAR(FebDom1+34)=AñoCalendario,MONTH(FebDom1+34)=2),FebDom1+34,\"\"),IF(AND(YEAR(FebDom1+41)=AñoCalendario,MONTH(FebDom1+41)=2),FebDom1+41,\"\"))","v":""},{"$f":"IF(DAY(FebDom1)=1,IF(AND(YEAR(FebDom1+35)=AñoCalendario,MONTH(FebDom1+35)=2),FebDom1+35,\"\"),IF(AND(YEAR(FebDom1+42)=AñoCalendario,MONTH(FebDom1+42)=2),FebDom1+42,\"\"))","v":""},null,null,{"$f":"IF(DAY(MarDom1)=1,IF(AND(YEAR(MarDom1+29)=AñoCalendario,MONTH(MarDom1+29)=3),MarDom1+29,\"\"),IF(AND(YEAR(MarDom1+36)=AñoCalendario,MONTH(MarDom1+36)=3),MarDom1+36,\"\"))","v":""},{"$f":"IF(DAY(MarDom1)=1,IF(AND(YEAR(MarDom1+30)=AñoCalendario,MONTH(MarDom1+30)=3),MarDom1+30,\"\"),IF(AND(YEAR(MarDom1+37)=AñoCalendario,MONTH(MarDom1+37)=3),MarDom1+37,\"\"))","v":""},{"$f":"IF(DAY(MarDom1)=1,IF(AND(YEAR(MarDom1+31)=AñoCalendario,MONTH(MarDom1+31)=3),MarDom1+31,\"\"),IF(AND(YEAR(MarDom1+38)=AñoCalendario,MONTH(MarDom1+38)=3),MarDom1+38,\"\"))","v":""},{"$f":"IF(DAY(MarDom1)=1,IF(AND(YEAR(MarDom1+32)=AñoCalendario,MONTH(MarDom1+32)=3),MarDom1+32,\"\"),IF(AND(YEAR(MarDom1+39)=AñoCalendario,MONTH(MarDom1+39)=3),MarDom1+39,\"\"))","v":""},{"$f":"IF(DAY(MarDom1)=1,IF(AND(YEAR(MarDom1+33)=AñoCalendario,MONTH(MarDom1+33)=3),MarDom1+33,\"\"),IF(AND(YEAR(MarDom1+40)=AñoCalendario,MONTH(MarDom1+40)=3),MarDom1+40,\"\"))","v":""},{"$f":"IF(DAY(MarDom1)=1,IF(AND(YEAR(MarDom1+34)=AñoCalendario,MONTH(MarDom1+34)=3),MarDom1+34,\"\"),IF(AND(YEAR(MarDom1+41)=AñoCalendario,MONTH(MarDom1+41)=3),MarDom1+41,\"\"))","v":""},{"$f":"IF(DAY(MarDom1)=1,IF(AND(YEAR(MarDom1+35)=AñoCalendario,MONTH(MarDom1+35)=3),MarDom1+35,\"\"),IF(AND(YEAR(MarDom1+42)=AñoCalendario,MONTH(MarDom1+42)=3),MarDom1+42,\"\"))","v":""},null,null,{"$f":"IF(DAY(AbrDom1)=1,IF(AND(YEAR(AbrDom1+29)=AñoCalendario,MONTH(AbrDom1+29)=4),AbrDom1+29,\"\"),IF(AND(YEAR(AbrDom1+36)=AñoCalendario,MONTH(AbrDom1+36)=4),AbrDom1+36,\"\"))","v":""},{"$f":"IF(DAY(AbrDom1)=1,IF(AND(YEAR(AbrDom1+30)=AñoCalendario,MONTH(AbrDom1+30)=4),AbrDom1+30,\"\"),IF(AND(YEAR(AbrDom1+37)=AñoCalendario,MONTH(AbrDom1+37)=4),AbrDom1+37,\"\"))","v":""},{"$f":"IF(DAY(AbrDom1)=1,IF(AND(YEAR(AbrDom1+31)=AñoCalendario,MONTH(AbrDom1+31)=4),AbrDom1+31,\"\"),IF(AND(YEAR(AbrDom1+38)=AñoCalendario,MONTH(AbrDom1+38)=4),AbrDom1+38,\"\"))","v":""},{"$f":"IF(DAY(AbrDom1)=1,IF(AND(YEAR(AbrDom1+32)=AñoCalendario,MONTH(AbrDom1+32)=4),AbrDom1+32,\"\"),IF(AND(YEAR(AbrDom1+39)=AñoCalendario,MONTH(AbrDom1+39)=4),AbrDom1+39,\"\"))","v":""},{"$f":"IF(DAY(AbrDom1)=1,IF(AND(YEAR(AbrDom1+33)=AñoCalendario,MONTH(AbrDom1+33)=4),AbrDom1+33,\"\"),IF(AND(YEAR(AbrDom1+40)=AñoCalendario,MONTH(AbrDom1+40)=4),AbrDom1+40,\"\"))","v":""},{"$f":"IF(DAY(AbrDom1)=1,IF(AND(YEAR(AbrDom1+34)=AñoCalendario,MONTH(AbrDom1+34)=4),AbrDom1+34,\"\"),IF(AND(YEAR(AbrDom1+41)=AñoCalendario,MONTH(AbrDom1+41)=4),AbrDom1+41,\"\"))","v":""},{"$f":"IF(DAY(AbrDom1)=1,IF(AND(YEAR(AbrDom1+35)=AñoCalendario,MONTH(AbrDom1+35)=4),AbrDom1+35,\"\"),IF(AND(YEAR(AbrDom1+42)=AñoCalendario,MONTH(AbrDom1+42)=4),AbrDom1+42,\"\"))","v":""}]
["El calendario de mayo está en las celdas C34 a I40, el calendario de junio en las celdas L34 a R40, el calendario de julio en las celdas U34 a AA40 y calendario de agosto en las celdas AD34 a AJ40."]
["Los nombres de los meses se encuentran en esta fila. La etiqueta de mayo está en la celda C33, la etiqueta de junio en la celda L33, la de julio en U33 y la de agosto en AD33.",null,{"$f":"DATE(AñoCalendario,5,1)","v":"2019-05-01"},{"$nulls":8},{"$f":"DATE(AñoCalendario,6,1)","v":"2019-06-01"},{"$nulls":8},{"$f":"DATE(AñoCalendario,7,1)","v":"2019-07-01"},{"$nulls":8},{"$f":"DATE(AñoCalendario,8,1)","v":"2019-08-01"}]
["Los nombres de los días laborables se encuentran en esta fila. Los nombres de los días laborables de mayo están en las celdas C34 a I34, los días laborables de junio en las celdas L34 a R34, los días laborables de julio en las celdas U34 a AA34 y los días laborables de agosto en las celdas AD34 a AJ34.",null,"lu","ma","mi","ju","vi","sá","do",null,null,"lu","ma","mi","ju","vi","sá","do",null,null,"lu","ma","mi","ju","vi","sá","do",null,null,"lu","ma","mi","ju","vi","sá","do"]
["Las fechas se actualizan automáticamente en esta fila. Las fechas de mayo están en las celdas a la derecha, las celdas C35 a I40, las fechas de junio en las celdas L35 a R40, las fechas de julio en las celdas U35 a AA35 y las fechas de agosto en las celdas AD35 a AJ40. La siguiente instrucción está en la celda A41.",null,{"$f":"IF(DAY(MayDom1)=1,\"\",IF(AND(YEAR(MayDom1+1)=AñoCalendario,MONTH(MayDom1+1)=5),MayDom1+1,\"\"))","v":""},{"$f":"IF(DAY(MayDom1)=1,\"\",IF(AND(YEAR(MayDom1+2)=AñoCalendario,MONTH(MayDom1+2)=5),MayDom1+2,\"\"))","v":""},{"$f":"IF(DAY(MayDom1)=1,\"\",IF(AND(YEAR(MayDom1+3)=AñoCalendario,MONTH(MayDom1+3)=5),MayDom1+3,\"\"))","v":"2019-05-01"},{"$f":"IF(DAY(MayDom1)=1,\"\",IF(AND(YEAR(MayDom1+4)=AñoCalendario,MONTH(MayDom1+4)=5),MayDom1+4,\"\"))","v":"2019-05-02"},{"$f":"IF(DAY(MayDom1)=1,\"\",IF(AND(YEAR(MayDom1+5)=AñoCalendario,MONTH(MayDom1+5)=5),MayDom1+5,\"\"))","v":"2019-05-03"},{"$f":"IF(DAY(MayDom1)=1,\"\",IF(AND(YEAR(MayDom1+6)=AñoCalendario,MONTH(MayDom1+6)=5),MayDom1+6,\"\"))","v":"2019-05-04"},{"$f":"IF(DAY(MayDom1)=1,IF(AND(YEAR(MayDom1)=AñoCalendario,MONTH(MayDom1)=5),MayDom1,\"\"),IF(AND(YEAR(MayDom1+7)=AñoCalendario,MONTH(MayDom1+7)=5),MayDom1+7,\"\"))","v":"2019-05-05"},null,null,{"$f":"IF(DAY(JunDom1)=1,\"\",IF(AND(YEAR(JunDom1+1)=AñoCalendario,MONTH(JunDom1+1)=6),JunDom1+1,\"\"))","v":""},{"$f":"IF(DAY(JunDom1)=1,\"\",IF(AND(YEAR(JunDom1+2)=AñoCalendario,MONTH(JunDom1+2)=6),JunDom1+2,\"\"))","v":""},{"$f":"IF(DAY(JunDom1)=1,\"\",IF(AND(YEAR(JunDom1+3)=AñoCalendario,MONTH(JunDom1+3)=6),JunDom1+3,\"\"))","v":""},{"$f":"IF(DAY(JunDom1)=1,\"\",IF(AND(YEAR(JunDom1+4)=AñoCalendario,MONTH(JunDom1+4)=6),JunDom1+4,\"\"))","v":""},{"$f":"IF(DAY(JunDom1)=1,\"\",IF(AND(YEAR(JunDom1+5)=AñoCalendario,MONTH(JunDom1+5)=6),JunDom1+5,\"\"))","v":""},{"$f":"IF(DAY(JunDom1)=1,\"\",IF(AND(YEAR(JunDom1+6)=AñoCalendario,MONTH(JunDom1+6)=6),JunDom1+6,\"\"))","v":"2019-06-01"},{"$f":"IF(DAY(JunDom1)=1,IF(AND(YEAR(JunDom1)=AñoCalendario,MONTH(JunDom1)=6),JunDom1,\"\"),IF(AND(YEAR(JunDom1+7)=AñoCalendario,MONTH(JunDom1+7)=6),JunDom1+7,\"\"))","v":"2019-06-02"},null,null,{"$f":"IF(DAY(JulDom1)=1,\"\",IF(AND(YEAR(JulDom1+1)=AñoCalendario,MONTH(JulDom1+1)=7),JulDom1+1,\"\"))","v":"2019-07-01"},{"$f":"IF(DAY(JulDom1)=1,\"\",IF(AND(YEAR(JulDom1+2)=AñoCalendario,MONTH(JulDom1+2)=7),JulDom1+2,\"\"))","v":"2019-07-02"},{"$f":"IF(DAY(JulDom1)=1,\"\",IF(AND(YEAR(JulDom1+3)=AñoCalendario,MONTH(JulDom1+3)=7),JulDom1+3,\"\"))","v":"2019-07-03"},{"$f":"IF(DAY(JulDom1)=1,\"\",IF(AND(YEAR(JulDom1+4)=AñoCalendario,MONTH(JulDom1+4)=7),JulDom1+4,\"\"))","v":"2019-07-04"},{"$f":"IF(DAY(JulDom1)=1,\"\",IF(AND(YEAR(JulDom1+5)=AñoCalendario,MONTH(JulDom1+5)=7),JulDom1+5,\"\"))","v":"2019-07-05"},{"$f":"IF(DAY(JulDom1)=1,\"\",IF(AND(YEAR(JulDom1+6)=AñoCalendario,MONTH(JulDom1+6)=7),JulDom1+6,\"\"))","v":"2019-07-06"},{"$f":"IF(DAY(JulDom1)=1,IF(AND(YEAR(JulDom1)=AñoCalendario,MONTH(JulDom1)=7),JulDom1,\"\"),IF(AND(YEAR(JulDom1+7)=AñoCalendario,MONTH(JulDom1+7)=7),JulDom1+7,\"\"))","v":"2019-07-07"},null,null,{"$f":"IF(DAY(AgoDom1)=1,\"\",IF(AND(YEAR(AgoDom1+1)=AñoCalendario,MONTH(AgoDom1+1)=8),AgoDom1+1,\"\"))","v":""},{"$f":"IF(DAY(AgoDom1)=1,\"\",IF(AND(YEAR(AgoDom1+2)=AñoCalendario,MONTH(AgoDom1+2)=8),AgoDom1+2,\"\"))","v":""},{"$f":"IF(DAY(AgoDom1)=1,\"\",IF(AND(YEAR(AgoDom1+3)=AñoCalendario,MONTH(AgoDom1+3)=8),AgoDom1+3,\"\"))","v":""},{"$f":"IF(DAY(AgoDom1)=1,\"\",IF(AND(YEAR(AgoDom1+4)=AñoCalendario,MONTH(AgoDom1+4)=8),AgoDom1+4,\"\"))","v":"2019-08-01"},{"$f":"IF(DAY(AgoDom1)=1,\"\",IF(AND(YEAR(AgoDom1+5)=AñoCalendario,MONTH(AgoDom1+5)=8),AgoDom1+5,\"\"))","v":"2019-08-02"},{"$f":"IF(DAY(AgoDom1)=1,\"\",IF(AND(YEAR(AgoDom1+6)=AñoCalendario,MONTH(AgoDom1+6)=8),AgoDom1+6,\"\"))","v":"2019-08-03"},{"$f":"IF(DAY(AgoDom1)=1,IF(AND(YEAR(AgoDom1)=AñoCalendario,MONTH(AgoDom1)=8),AgoDom1,\"\"),IF(AND(YEAR(AgoDom1+7)=AñoCalendario,MONTH(AgoDom1+7)=8),AgoDom1+7,\"\"))","v":"2019-08-04"}]
[null,null,{"$f":"IF(DAY(MayDom1)=1,IF(AND(YEAR(MayDom1+1)=AñoCalendario,MONTH(MayDom1+1)=5),MayDom1+1,\"\"),IF(AND(YEAR(MayDom1+8)=AñoCalendario,MONTH(MayDom1+8)=5),MayDom1+8,\"\"))","v":"2019-05-06"},{"$f":"IF(DAY(MayDom1)=1,IF(AND(YEAR(MayDom1+2)=AñoCalendario,MONTH(MayDom1+2)=5),MayDom1+2,\"\"),IF(AND(YEAR(MayDom1+9)=AñoCalendario,MONTH(MayDom1+9)=5),MayDom1+9,\"\"))","v":"2019-05-07"},{"$f":"IF(DAY(MayDom1)=1,IF(AND(YEAR(MayDom1+3)=AñoCalendario,MONTH(MayDom1+3)=5),MayDom1+3,\"\"),IF(AND(YEAR(MayDom1+10)=AñoCalendario,MONTH(MayDom1+10)=5),MayDom1+10,\"\"))","v":"2019-05-08"},{"$f":"IF(DAY(MayDom1)=1,IF(AND(YEAR(MayDom1+4)=AñoCalendario,MONTH(MayDom1+4)=5),MayDom1+4,\"\"),IF(AND(YEAR(MayDom1+11)=AñoCalendario,MONTH(MayDom1+11)=5),MayDom1+11,\"\"))","v":"2019-05-09"},{"$f":"IF(DAY(MayDom1)=1,IF(AND(YEAR(MayDom1+5)=AñoCalendario,MONTH(MayDom1+5)=5),MayDom1+5,\"\"),IF(AND(YEAR(MayDom1+12)=AñoCalendario,MONTH(MayDom1+12)=5),MayDom1+12,\"\"))","v":"2019-05-10"},{"$f":"IF(DAY(MayDom1)=1,IF(AND(YEAR(MayDom1+6)=AñoCalendario,MONTH(MayDom1+6)=5),MayDom1+6,\"\"),IF(AND(YEAR(MayDom1+13)=AñoCalendario,MONTH(MayDom1+13)=5),MayDom1+13,\"\"))","v":"2019-05-11"},{"$f":"IF(DAY(MayDom1)=1,IF(AND(YEAR(MayDom1+7)=AñoCalendario,MONTH(MayDom1+7)=5),MayDom1+7,\"\"),IF(AND(YEAR(MayDom1+14)=AñoCalendario,MONTH(MayDom1+14)=5),MayDom1+14,\"\"))","v":"2019-05-12"},null,null,{"$f":"IF(DAY(JunDom1)=1,IF(AND(YEAR(JunDom1+1)=AñoCalendario,MONTH(JunDom1+1)=6),JunDom1+1,\"\"),IF(AND(YEAR(JunDom1+8)=AñoCalendario,MONTH(JunDom1+8)=6),JunDom1+8,\"\"))","v":"2019-06-03"},{"$f":"IF(DAY(JunDom1)=1,IF(AND(YEAR(JunDom1+2)=AñoCalendario,MONTH(JunDom1+2)=6),JunDom1+2,\"\"),IF(AND(YEAR(JunDom1+9)=AñoCalendario,MONTH(JunDom1+9)=6),JunDom1+9,\"\"))","v":"2019-06-04"},{"$f":"IF(DAY(JunDom1)=1,IF(AND(YEAR(JunDom1+3)=AñoCalendario,MONTH(JunDom1+3)=6),JunDom1+3,\"\"),IF(AND(YEAR(JunDom1+10)=AñoCalendario,MONTH(JunDom1+10)=6),JunDom1+10,\"\"))","v":"2019-06-05"},{"$f":"IF(DAY(JunDom1)=1,IF(AND(YEAR(JunDom1+4)=AñoCalendario,MONTH(JunDom1+4)=6),JunDom1+4,\"\"),IF(AND(YEAR(JunDom1+11)=AñoCalendario,MONTH(JunDom1+11)=6),JunDom1+11,\"\"))","v":"2019-06-06"},{"$f":"IF(DAY(JunDom1)=1,IF(AND(YEAR(JunDom1+5)=AñoCalendario,MONTH(JunDom1+5)=6),JunDom1+5,\"\"),IF(AND(YEAR(JunDom1+12)=AñoCalendario,MONTH(JunDom1+12)=6),JunDom1+12,\"\"))","v":"2019-06-07"},{"$f":"IF(DAY(JunDom1)=1,IF(AND(YEAR(JunDom1+6)=AñoCalendario,MONTH(JunDom1+6)=6),JunDom1+6,\"\"),IF(AND(YEAR(JunDom1+13)=AñoCalendario,MONTH(JunDom1+13)=6),JunDom1+13,\"\"))","v":"2019-06-08"},{"$f":"IF(DAY(JunDom1)=1,IF(AND(YEAR(JunDom1+7)=AñoCalendario,MONTH(JunDom1+7)=6),JunDom1+7,\"\"),IF(AND(YEAR(JunDom1+14)=AñoCalendario,MONTH(JunDom1+14)=6),JunDom1+14,\"\"))","v":"2019-06-09"},null,null,{"$f":"IF(DAY(JulDom1)=1,IF(AND(YEAR(JulDom1+1)=AñoCalendario,MONTH(JulDom1+1)=7),JulDom1+1,\"\"),IF(AND(YEAR(JulDom1+8)=AñoCalendario,MONTH(JulDom1+8)=7),JulDom1+8,\"\"))","v":"2019-07-08"},{"$f":"IF(DAY(JulDom1)=1,IF(AND(YEAR(JulDom1+2)=AñoCalendario,MONTH(JulDom1+2)=7),JulDom1+2,\"\"),IF(AND(YEAR(JulDom1+9)=AñoCalendario,MONTH(JulDom1+9)=7),JulDom1+9,\"\"))","v":"2019-07-09"},{"$f":"IF(DAY(JulDom1)=1,IF(AND(YEAR(JulDom1+3)=AñoCalendario,MONTH(JulDom1+3)=7),JulDom1+3,\"\"),IF(AND(YEAR(JulDom1+10)=AñoCalendario,MONTH(JulDom1+10)=7),JulDom1+10,\"\"))","v":"2019-07-10"},{"$f":"IF(DAY(JulDom1)=1,IF(AND(YEAR(JulDom1+4)=AñoCalendario,MONTH(JulDom1+4)=7),JulDom1+4,\"\"),IF(AND(YEAR(JulDom1+11)=AñoCalendario,MONTH(JulDom1+11)=7),JulDom1+11,\"\"))","v":"2019-07-11"},{"$f":"IF(DAY(JulDom1)=1,IF(AND(YEAR(JulDom1+5)=AñoCalendario,MONTH(JulDom1+5)=7),JulDom1+5,\"\"),IF(AND(YEAR(JulDom1+12)=AñoCalendario,MONTH(JulDom1+12)=7),JulDom1+12,\"\"))","v":"2019-07-12"},{"$f":"IF(DAY(JulDom1)=1,IF(AND(YEAR(JulDom1+6)=AñoCalendario,MONTH(JulDom1+6)=7),JulDom1+6,\"\"),IF(AND(YEAR(JulDom1+13)=AñoCalendario,MONTH(JulDom1+13)=7),JulDom1+13,\"\"))","v":"2019-07-13"},{"$f":"IF(DAY(JulDom1)=1,IF(AND(YEAR(JulDom1+7)=AñoCalendario,MONTH(JulDom1+7)=7),JulDom1+7,\"\"),IF(AND(YEAR(JulDom1+14)=AñoCalendario,MONTH(JulDom1+14)=7),JulDom1+14,\"\"))","v":"2019-07-14"},null,null,{"$f":"IF(DAY(AgoDom1)=1,IF(AND(YEAR(AgoDom1+1)=AñoCalendario,MONTH(AgoDom1+1)=8),AgoDom1+1,\"\"),IF(AND(YEAR(AgoDom1+8)=AñoCalendario,MONTH(AgoDom1+8)=8),AgoDom1+8,\"\"))","v":"2019-08-05"},{"$f":"IF(DAY(AgoDom1)=1,IF(AND(YEAR(AgoDom1+2)=AñoCalendario,MONTH(AgoDom1+2)=8),AgoDom1+2,\"\"),IF(AND(YEAR(AgoDom1+9)=AñoCalendario,MONTH(AgoDom1+9)=8),AgoDom1+9,\"\"))","v":"2019-08-06"},{"$f":"IF(DAY(AgoDom1)=1,IF(AND(YEAR(AgoDom1+3)=AñoCalendario,MONTH(AgoDom1+3)=8),AgoDom1+3,\"\"),IF(AND(YEAR(AgoDom1+10)=AñoCalendario,MONTH(AgoDom1+10)=8),AgoDom1+10,\"\"))","v":"2019-08-07"},{"$f":"IF(DAY(AgoDom1)=1,IF(AND(YEAR(AgoDom1+4)=AñoCalendario,MONTH(AgoDom1+4)=8),AgoDom1+4,\"\"),IF(AND(YEAR(AgoDom1+11)=AñoCalendario,MONTH(AgoDom1+11)=8),AgoDom1+11,\"\"))","v":"2019-08-08"},{"$f":"IF(DAY(AgoDom1)=1,IF(AND(YEAR(AgoDom1+5)=AñoCalendario,MONTH(AgoDom1+5)=8),AgoDom1+5,\"\"),IF(AND(YEAR(AgoDom1+12)=AñoCalendario,MONTH(AgoDom1+12)=8),AgoDom1+12,\"\"))","v":"2019-08-09"},{"$f":"IF(DAY(AgoDom1)=1,IF(AND(YEAR(AgoDom1+6)=AñoCalendario,MONTH(AgoDom1+6)=8),AgoDom1+6,\"\"),IF(AND(YEAR(AgoDom1+13)=AñoCalendario,MONTH(AgoDom1+13)=8),AgoDom1+13,\"\"))","v":"2019-08-10"},{"$f":"IF(DAY(AgoDom1)=1,IF(AND(YEAR(AgoDom1+7)=AñoCalendario,MONTH(AgoDom1+7)=8),AgoDom1+7,\"\"),IF(AND(YEAR(AgoDom1+14)=AñoCalendario,MONTH(AgoDom1+14)=8),AgoDom1+14,\"\"))","v":"2019-08-11"}]
[null,null,{"$f":"IF(DAY(MayDom1)=1,IF(AND(YEAR(MayDom1+8)=AñoCalendario,MONTH(MayDom1+8)=5),MayDom1+8,\"\"),IF(AND(YEAR(MayDom1+15)=AñoCalendario,MONTH(MayDom1+15)=5),MayDom1+15,\"\"))","v":"2019-05-13"},{"$f":"IF(DAY(MayDom1)=1,IF(AND(YEAR(MayDom1+9)=AñoCalendario,MONTH(MayDom1+9)=5),MayDom1+9,\"\"),IF(AND(YEAR(MayDom1+16)=AñoCalendario,MONTH(MayDom1+16)=5),MayDom1+16,\"\"))","v":"2019-05-14"},{"$f":"IF(DAY(MayDom1)=1,IF(AND(YEAR(MayDom1+10)=AñoCalendario,MONTH(MayDom1+10)=5),MayDom1+10,\"\"),IF(AND(YEAR(MayDom1+17)=AñoCalendario,MONTH(MayDom1+17)=5),MayDom1+17,\"\"))","v":"2019-05-15"},{"$f":"IF(DAY(MayDom1)=1,IF(AND(YEAR(MayDom1+11)=AñoCalendario,MONTH(MayDom1+11)=5),MayDom1+11,\"\"),IF(AND(YEAR(MayDom1+18)=AñoCalendario,MONTH(MayDom1+18)=5),MayDom1+18,\"\"))","v":"2019-05-16"},{"$f":"IF(DAY(MayDom1)=1,IF(AND(YEAR(MayDom1+12)=AñoCalendario,MONTH(MayDom1+12)=5),MayDom1+12,\"\"),IF(AND(YEAR(MayDom1+19)=AñoCalendario,MONTH(MayDom1+19)=5),MayDom1+19,\"\"))","v":"2019-05-17"},{"$f":"IF(DAY(MayDom1)=1,IF(AND(YEAR(MayDom1+13)=AñoCalendario,MONTH(MayDom1+13)=5),MayDom1+13,\"\"),IF(AND(YEAR(MayDom1+20)=AñoCalendario,MONTH(MayDom1+20)=5),MayDom1+20,\"\"))","v":"2019-05-18"},{"$f":"IF(DAY(MayDom1)=1,IF(AND(YEAR(MayDom1+14)=AñoCalendario,MONTH(MayDom1+14)=5),MayDom1+14,\"\"),IF(AND(YEAR(MayDom1+21)=AñoCalendario,MONTH(MayDom1+21)=5),MayDom1+21,\"\"))","v":"2019-05-19"},null,null,{"$f":"IF(DAY(JunDom1)=1,IF(AND(YEAR(JunDom1+8)=AñoCalendario,MONTH(JunDom1+8)=6),JunDom1+8,\"\"),IF(AND(YEAR(JunDom1+15)=AñoCalendario,MONTH(JunDom1+15)=6),JunDom1+15,\"\"))","v":"2019-06-10"},{"$f":"IF(DAY(JunDom1)=1,IF(AND(YEAR(JunDom1+9)=AñoCalendario,MONTH(JunDom1+9)=6),JunDom1+9,\"\"),IF(AND(YEAR(JunDom1+16)=AñoCalendario,MONTH(JunDom1+16)=6),JunDom1+16,\"\"))","v":"2019-06-11"},{"$f":"IF(DAY(JunDom1)=1,IF(AND(YEAR(JunDom1+10)=AñoCalendario,MONTH(JunDom1+10)=6),JunDom1+10,\"\"),IF(AND(YEAR(JunDom1+17)=AñoCalendario,MONTH(JunDom1+17)=6),JunDom1+17,\"\"))","v":"2019-06-12"},{"$f":"IF(DAY(JunDom1)=1,IF(AND(YEAR(JunDom1+11)=AñoCalendario,MONTH(JunDom1+11)=6),JunDom1+11,\"\"),IF(AND(YEAR(JunDom1+18)=AñoCalendario,MONTH(JunDom1+18)=6),JunDom1+18,\"\"))","v":"2019-06-13"},{"$f":"IF(DAY(JunDom1)=1,IF(AND(YEAR(JunDom1+12)=AñoCalendario,MONTH(JunDom1+12)=6),JunDom1+12,\"\"),IF(AND(YEAR(JunDom1+19)=AñoCalendario,MONTH(JunDom1+19)=6),JunDom1+19,\"\"))","v":"2019-06-14"},{"$f":"IF(DAY(JunDom1)=1,IF(AND(YEAR(JunDom1+13)=AñoCalendario,MONTH(JunDom1+13)=6),JunDom1+13,\"\"),IF(AND(YEAR(JunDom1+20)=AñoCalendario,MONTH(JunDom1+20)=6),JunDom1+20,\"\"))","v":"2019-06-15"},{"$f":"IF(DAY(JunDom1)=1,IF(AND(YEAR(JunDom1+14)=AñoCalendario,MONTH(JunDom1+14)=6),JunDom1+14,\"\"),IF(AND(YEAR(JunDom1+21)=AñoCalendario,MONTH(JunDom1+21)=6),JunDom1+21,\"\"))","v":"2019-06-16"},null,null,{"$f":"IF(DAY(JulDom1)=1,IF(AND(YEAR(JulDom1+8)=AñoCalendario,MONTH(JulDom1+8)=7),JulDom1+8,\"\"),IF(AND(YEAR(JulDom1+15)=AñoCalendario,MONTH(JulDom1+15)=7),JulDom1+15,\"\"))","v":"2019-07-15"},{"$f":"IF(DAY(JulDom1)=1,IF(AND(YEAR(JulDom1+9)=AñoCalendario,MONTH(JulDom1+9)=7),JulDom1+9,\"\"),IF(AND(YEAR(JulDom1+16)=AñoCalendario,MONTH(JulDom1+16)=7),JulDom1+16,\"\"))","v":"2019-07-16"},{"$f":"IF(DAY(JulDom1)=1,IF(AND(YEAR(JulDom1+10)=AñoCalendario,MONTH(JulDom1+10)=7),JulDom1+10,\"\"),IF(AND(YEAR(JulDom1+17)=AñoCalendario,MONTH(JulDom1+17)=7),JulDom1+17,\"\"))","v":"2019-07-17"},{"$f":"IF(DAY(JulDom1)=1,IF(AND(YEAR(JulDom1+11)=AñoCalendario,MONTH(JulDom1+11)=7),JulDom1+11,\"\"),IF(AND(YEAR(JulDom1+18)=AñoCalendario,MONTH(JulDom1+18)=7),JulDom1+18,\"\"))","v":"2019-07-18"},{"$f":"IF(DAY(JulDom1)=1,IF(AND(YEAR(JulDom1+12)=AñoCalendario,MONTH(JulDom1+12)=7),JulDom1+12,\"\"),IF(AND(YEAR(JulDom1+19)=AñoCalendario,MONTH(JulDom1+19)=7),JulDom1+19,\"\"))","v":"2019-07-19"},{"$f":"IF(DAY(JulDom1)=1,IF(AND(YEAR(JulDom1+13)=AñoCalendario,MONTH(JulDom1+13)=7),JulDom1+13,\"\"),IF(AND(YEAR(JulDom1+20)=AñoCalendario,MONTH(JulDom1+20)=7),JulDom1+20,\"\"))","v":"2019-07-20"},{"$f":"IF(DAY(JulDom1)=1,IF(AND(YEAR(JulDom1+14)=AñoCalendario,MONTH(JulDom1+14)=7),JulDom1+14,\"\"),IF(AND(YEAR(JulDom1+21)=AñoCalendario,MONTH(JulDom1+21)=7),JulDom1+21,\"\"))","v":"2019-07-21"},null,null,{"$f":"IF(DAY(AgoDom1)=1,IF(AND(YEAR(AgoDom1+8)=AñoCalendario,MONTH(AgoDom1+8)=8),AgoDom1+8,\"\"),IF(AND(YEAR(AgoDom1+15)=AñoCalendario,MONTH(AgoDom1+15)=8),AgoDom1+15,\"\"))","v":"2019-08-12"},{"$f":"IF(DAY(AgoDom1)=1,IF(AND(YEAR(AgoDom1+9)=AñoCalendario,MONTH(AgoDom1+9)=8),AgoDom1+9,\"\"),IF(AND(YEAR(AgoDom1+16)=AñoCalendario,MONTH(AgoDom1+16)=8),AgoDom1+16,\"\"))","v":"2019-08-13"},{"$f":"IF(DAY(AgoDom1)=1,IF(AND(YEAR(AgoDom1+10)=AñoCalendario,MONTH(AgoDom1+10)=8),AgoDom1+10,\"\"),IF(AND(YEAR(AgoDom1+17)=AñoCalendario,MONTH(AgoDom1+17)=8),AgoDom1+17,\"\"))","v":"2019-08-14"},{"$f":"IF(DAY(AgoDom1)=1,IF(AND(YEAR(AgoDom1+11)=AñoCalendario,MONTH(AgoDom1+11)=8),AgoDom1+11,\"\"),IF(AND(YEAR(AgoDom1+18)=AñoCalendario,MONTH(AgoDom1+18)=8),AgoDom1+18,\"\"))","v":"2019-08-15"},{"$f":"IF(DAY(AgoDom1)=1,IF(AND(YEAR(AgoDom1+12)=AñoCalendario,MONTH(AgoDom1+12)=8),AgoDom1+12,\"\"),IF(AND(YEAR(AgoDom1+19)=AñoCalendario,MONTH(AgoDom1+19)=8),AgoDom1+19,\"\"))","v":"2019-08-16"},{"$f":"IF(DAY(AgoDom1)=1,IF(AND(YEAR(AgoDom1+13)=AñoCalendario,MONTH(AgoDom1+13)=8),AgoDom1+13,\"\"),IF(AND(YEAR(AgoDom1+20)=AñoCalendario,MONTH(AgoDom1+20)=8),AgoDom1+20,\"\"))","v":"2019-08-17"},{"$f":"IF(DAY(AgoDom1)=1,IF(AND(YEAR(AgoDom1+14)=AñoCalendario,MONTH(AgoDom1+14)=8),AgoDom1+14,\"\"),IF(AND(YEAR(AgoDom1+21)=AñoCalendario,MONTH(AgoDom1+21)=8),AgoDom1+21,\"\"))","v":"2019-08-18"}]
[null,null,{"$f":"IF(DAY(MayDom1)=1,IF(AND(YEAR(MayDom1+15)=AñoCalendario,MONTH(MayDom1+15)=5),MayDom1+15,\"\"),IF(AND(YEAR(MayDom1+22)=AñoCalendario,MONTH(MayDom1+22)=5),MayDom1+22,\"\"))","v":"2019-05-20"},{"$f":"IF(DAY(MayDom1)=1,IF(AND(YEAR(MayDom1+16)=AñoCalendario,MONTH(MayDom1+16)=5),MayDom1+16,\"\"),IF(AND(YEAR(MayDom1+23)=AñoCalendario,MONTH(MayDom1+23)=5),MayDom1+23,\"\"))","v":"2019-05-21"},{"$f":"IF(DAY(MayDom1)=1,IF(AND(YEAR(MayDom1+17)=AñoCalendario,MONTH(MayDom1+17)=5),MayDom1+17,\"\"),IF(AND(YEAR(MayDom1+24)=AñoCalendario,MONTH(MayDom1+24)=5),MayDom1+24,\"\"))","v":"2019-05-22"},{"$f":"IF(DAY(MayDom1)=1,IF(AND(YEAR(MayDom1+18)=AñoCalendario,MONTH(MayDom1+18)=5),MayDom1+18,\"\"),IF(AND(YEAR(MayDom1+25)=AñoCalendario,MONTH(MayDom1+25)=5),MayDom1+25,\"\"))","v":"2019-05-23"},{"$f":"IF(DAY(MayDom1)=1,IF(AND(YEAR(MayDom1+19)=AñoCalendario,MONTH(MayDom1+19)=5),MayDom1+19,\"\"),IF(AND(YEAR(MayDom1+26)=AñoCalendario,MONTH(MayDom1+26)=5),MayDom1+26,\"\"))","v":"2019-05-24"},{"$f":"IF(DAY(MayDom1)=1,IF(AND(YEAR(MayDom1+20)=AñoCalendario,MONTH(MayDom1+20)=5),MayDom1+20,\"\"),IF(AND(YEAR(MayDom1+27)=AñoCalendario,MONTH(MayDom1+27)=5),MayDom1+27,\"\"))","v":"2019-05-25"},{"$f":"IF(DAY(MayDom1)=1,IF(AND(YEAR(MayDom1+21)=AñoCalendario,MONTH(MayDom1+21)=5),MayDom1+21,\"\"),IF(AND(YEAR(MayDom1+28)=AñoCalendario,MONTH(MayDom1+28)=5),MayDom1+28,\"\"))","v":"2019-05-26"},null,null,{"$f":"IF(DAY(JunDom1)=1,IF(AND(YEAR(JunDom1+15)=AñoCalendario,MONTH(JunDom1+15)=6),JunDom1+15,\"\"),IF(AND(YEAR(JunDom1+22)=AñoCalendario,MONTH(JunDom1+22)=6),JunDom1+22,\"\"))","v":"2019-06-17"},{"$f":"IF(DAY(JunDom1)=1,IF(AND(YEAR(JunDom1+16)=AñoCalendario,MONTH(JunDom1+16)=6),JunDom1+16,\"\"),IF(AND(YEAR(JunDom1+23)=AñoCalendario,MONTH(JunDom1+23)=6),JunDom1+23,\"\"))","v":"2019-06-18"},{"$f":"IF(DAY(JunDom1)=1,IF(AND(YEAR(JunDom1+17)=AñoCalendario,MONTH(JunDom1+17)=6),JunDom1+17,\"\"),IF(AND(YEAR(JunDom1+24)=AñoCalendario,MONTH(JunDom1+24)=6),JunDom1+24,\"\"))","v":"2019-06-19"},{"$f":"IF(DAY(JunDom1)=1,IF(AND(YEAR(JunDom1+18)=AñoCalendario,MONTH(JunDom1+18)=6),JunDom1+18,\"\"),IF(AND(YEAR(JunDom1+25)=AñoCalendario,MONTH(JunDom1+25)=6),JunDom1+25,\"\"))","v":"2019-06-20"},{"$f":"IF(DAY(JunDom1)=1,IF(AND(YEAR(JunDom1+19)=AñoCalendario,MONTH(JunDom1+19)=6),JunDom1+19,\"\"),IF(AND(YEAR(JunDom1+26)=AñoCalendario,MONTH(JunDom1+26)=6),JunDom1+26,\"\"))","v":"2019-06-21"},{"$f":"IF(DAY(JunDom1)=1,IF(AND(YEAR(JunDom1+20)=AñoCalendario,MONTH(JunDom1+20)=6),JunDom1+20,\"\"),IF(AND(YEAR(JunDom1+27)=AñoCalendario,MONTH(JunDom1+27)=6),JunDom1+27,\"\"))","v":"2019-06-22"},{"$f":"IF(DAY(JunDom1)=1,IF(AND(YEAR(JunDom1+21)=AñoCalendario,MONTH(JunDom1+21)=6),JunDom1+21,\"\"),IF(AND(YEAR(JunDom1+28)=AñoCalendario,MONTH(JunDom1+28)=6),JunDom1+28,\"\"))","v":"2019-06-23"},null,null,{"$f":"IF(DAY(JulDom1)=1,IF(AND(YEAR(JulDom1+15)=AñoCalendario,MONTH(JulDom1+15)=7),JulDom1+15,\"\"),IF(AND(YEAR(JulDom1+22)=AñoCalendario,MONTH(JulDom1+22)=7),JulDom1+22,\"\"))","v":"2019-07-22"},{"$f":"IF(DAY(JulDom1)=1,IF(AND(YEAR(JulDom1+16)=AñoCalendario,MONTH(JulDom1+16)=7),JulDom1+16,\"\"),IF(AND(YEAR(JulDom1+23)=AñoCalendario,MONTH(JulDom1+23)=7),JulDom1+23,\"\"))","v":"2019-07-23"},{"$f":"IF(DAY(JulDom1)=1,IF(AND(YEAR(JulDom1+17)=AñoCalendario,MONTH(JulDom1+17)=7),JulDom1+17,\"\"),IF(AND(YEAR(JulDom1+24)=AñoCalendario,MONTH(JulDom1+24)=7),JulDom1+24,\"\"))","v":"2019-07-24"},{"$f":"IF(DAY(JulDom1)=1,IF(AND(YEAR(JulDom1+18)=AñoCalendario,MONTH(JulDom1+18)=7),JulDom1+18,\"\"),IF(AND(YEAR(JulDom1+25)=AñoCalendario,MONTH(JulDom1+25)=7),JulDom1+25,\"\"))","v":"2019-07-25"},{"$f":"IF(DAY(JulDom1)=1,IF(AND(YEAR(JulDom1+19)=AñoCalendario,MONTH(JulDom1+19)=7),JulDom1+19,\"\"),IF(AND(YEAR(JulDom1+26)=AñoCalendario,MONTH(JulDom1+26)=7),JulDom1+26,\"\"))","v":"2019-07-26"},{"$f":"IF(DAY(JulDom1)=1,IF(AND(YEAR(JulDom1+20)=AñoCalendario,MONTH(JulDom1+20)=7),JulDom1+20,\"\"),IF(AND(YEAR(JulDom1+27)=AñoCalendario,MONTH(JulDom1+27)=7),JulDom1+27,\"\"))","v":"2019-07-27"},{"$f":"IF(DAY(JulDom1)=1,IF(AND(YEAR(JulDom1+21)=AñoCalendario,MONTH(JulDom1+21)=7),JulDom1+21,\"\"),IF(AND(YEAR(JulDom1+28)=AñoCalendario,MONTH(JulDom1+28)=7),JulDom1+28,\"\"))","v":"2019-07-28"},null,null,{"$f":"IF(DAY(AgoDom1)=1,IF(AND(YEAR(AgoDom1+15)=AñoCalendario,MONTH(AgoDom1+15)=8),AgoDom1+15,\"\"),IF(AND(YEAR(AgoDom1+22)=AñoCalendario,MONTH(AgoDom1+22)=8),AgoDom1+22,\"\"))","v":"2019-08-19"},{"$f":"IF(DAY(AgoDom1)=1,IF(AND(YEAR(AgoDom1+16)=AñoCalendario,MONTH(AgoDom1+16)=8),AgoDom1+16,\"\"),IF(AND(YEAR(AgoDom1+23)=AñoCalendario,MONTH(AgoDom1+23)=8),AgoDom1+23,\"\"))","v":"2019-08-20"},{"$f":"IF(DAY(AgoDom1)=1,IF(AND(YEAR(AgoDom1+17)=AñoCalendario,MONTH(AgoDom1+17)=8),AgoDom1+17,\"\"),IF(AND(YEAR(AgoDom1+24)=AñoCalendario,MONTH(AgoDom1+24)=8),AgoDom1+24,\"\"))","v":"2019-08-21"},{"$f":"IF(DAY(AgoDom1)=1,IF(AND(YEAR(AgoDom1+18)=AñoCalendario,MONTH(AgoDom1+18)=8),AgoDom1+18,\"\"),IF(AND(YEAR(AgoDom1+25)=AñoCalendario,MONTH(AgoDom1+25)=8),AgoDom1+25,\"\"))","v":"2019-08-22"},{"$f":"IF(DAY(AgoDom1)=1,IF(AND(YEAR(AgoDom1+19)=AñoCalendario,MONTH(AgoDom1+19)=8),AgoDom1+19,\"\"),IF(AND(YEAR(AgoDom1+26)=AñoCalendario,MONTH(AgoDom1+26)=8),AgoDom1+26,\"\"))","v":"2019-08-23"},{"$f":"IF(DAY(AgoDom1)=1,IF(AND(YEAR(AgoDom1+20)=AñoCalendario,MONTH(AgoDom1+20)=8),AgoDom1+20,\"\"),IF(AND(YEAR(AgoDom1+27)=AñoCalendario,MONTH(AgoDom1+27)=8),AgoDom1+27,\"\"))","v":"2019-08-24"},{"$f":"IF(DAY(AgoDom1)=1,IF(AND(YEAR(AgoDom1+21)=AñoCalendario,MONTH(AgoDom1+21)=8),AgoDom1+21,\"\"),IF(AND(YEAR(AgoDom1+28)=AñoCalendario,MONTH(AgoDom1+28)=8),AgoDom1+28,\"\"))","v":"2019-08-25"}]
[null,null,{"$f":"IF(DAY(MayDom1)=1,IF(AND(YEAR(MayDom1+22)=AñoCalendario,MONTH(MayDom1+22)=5),MayDom1+22,\"\"),IF(AND(YEAR(MayDom1+29)=AñoCalendario,MONTH(MayDom1+29)=5),MayDom1+29,\"\"))","v":"2019-05-27"},{"$f":"IF(DAY(MayDom1)=1,IF(AND(YEAR(MayDom1+23)=AñoCalendario,MONTH(MayDom1+23)=5),MayDom1+23,\"\"),IF(AND(YEAR(MayDom1+30)=AñoCalendario,MONTH(MayDom1+30)=5),MayDom1+30,\"\"))","v":"2019-05-28"},{"$f":"IF(DAY(MayDom1)=1,IF(AND(YEAR(MayDom1+24)=AñoCalendario,MONTH(MayDom1+24)=5),MayDom1+24,\"\"),IF(AND(YEAR(MayDom1+31)=AñoCalendario,MONTH(MayDom1+31)=5),MayDom1+31,\"\"))","v":"2019-05-29"},{"$f":"IF(DAY(MayDom1)=1,IF(AND(YEAR(MayDom1+25)=AñoCalendario,MONTH(MayDom1+25)=5),MayDom1+25,\"\"),IF(AND(YEAR(MayDom1+32)=AñoCalendario,MONTH(MayDom1+32)=5),MayDom1+32,\"\"))","v":"2019-05-30"},{"$f":"IF(DAY(MayDom1)=1,IF(AND(YEAR(MayDom1+26)=AñoCalendario,MONTH(MayDom1+26)=5),MayDom1+26,\"\"),IF(AND(YEAR(MayDom1+33)=AñoCalendario,MONTH(MayDom1+33)=5),MayDom1+33,\"\"))","v":"2019-05-31"},{"$f":"IF(DAY(MayDom1)=1,IF(AND(YEAR(MayDom1+27)=AñoCalendario,MONTH(MayDom1+27)=5),MayDom1+27,\"\"),IF(AND(YEAR(MayDom1+34)=AñoCalendario,MONTH(MayDom1+34)=5),MayDom1+34,\"\"))","v":""},{"$f":"IF(DAY(MayDom1)=1,IF(AND(YEAR(MayDom1+28)=AñoCalendario,MONTH(MayDom1+28)=5),MayDom1+28,\"\"),IF(AND(YEAR(MayDom1+35)=AñoCalendario,MONTH(MayDom1+35)=5),MayDom1+35,\"\"))","v":""},null,null,{"$f":"IF(DAY(JunDom1)=1,IF(AND(YEAR(JunDom1+22)=AñoCalendario,MONTH(JunDom1+22)=6),JunDom1+22,\"\"),IF(AND(YEAR(JunDom1+29)=AñoCalendario,MONTH(JunDom1+29)=6),JunDom1+29,\"\"))","v":"2019-06-24"},{"$f":"IF(DAY(JunDom1)=1,IF(AND(YEAR(JunDom1+23)=AñoCalendario,MONTH(JunDom1+23)=6),JunDom1+23,\"\"),IF(AND(YEAR(JunDom1+30)=AñoCalendario,MONTH(JunDom1+30)=6),JunDom1+30,\"\"))","v":"2019-06-25"},{"$f":"IF(DAY(JunDom1)=1,IF(AND(YEAR(JunDom1+24)=AñoCalendario,MONTH(JunDom1+24)=6),JunDom1+24,\"\"),IF(AND(YEAR(JunDom1+31)=AñoCalendario,MONTH(JunDom1+31)=6),JunDom1+31,\"\"))","v":"2019-06-26"},{"$f":"IF(DAY(JunDom1)=1,IF(AND(YEAR(JunDom1+25)=AñoCalendario,MONTH(JunDom1+25)=6),JunDom1+25,\"\"),IF(AND(YEAR(JunDom1+32)=AñoCalendario,MONTH(JunDom1+32)=6),JunDom1+32,\"\"))","v":"2019-06-27"},{"$f":"IF(DAY(JunDom1)=1,IF(AND(YEAR(JunDom1+26)=AñoCalendario,MONTH(JunDom1+26)=6),JunDom1+26,\"\"),IF(AND(YEAR(JunDom1+33)=AñoCalendario,MONTH(JunDom1+33)=6),JunDom1+33,\"\"))","v":"2019-06-28"},{"$f":"IF(DAY(JunDom1)=1,IF(AND(YEAR(JunDom1+27)=AñoCalendario,MONTH(JunDom1+27)=6),JunDom1+27,\"\"),IF(AND(YEAR(JunDom1+34)=AñoCalendario,MONTH(JunDom1+34)=6),JunDom1+34,\"\"))","v":"2019-06-29"},{"$f":"IF(DAY(JunDom1)=1,IF(AND(YEAR(JunDom1+28)=AñoCalendario,MONTH(JunDom1+28)=6),JunDom1+28,\"\"),IF(AND(YEAR(JunDom1+35)=AñoCalendario,MONTH(JunDom1+35)=6),JunDom1+35,\"\"))","v":"2019-06-30"},null,null,{"$f":"IF(DAY(JulDom1)=1,IF(AND(YEAR(JulDom1+22)=AñoCalendario,MONTH(JulDom1+22)=7),JulDom1+22,\"\"),IF(AND(YEAR(JulDom1+29)=AñoCalendario,MONTH(JulDom1+29)=7),JulDom1+29,\"\"))","v":"2019-07-29"},{"$f":"IF(DAY(JulDom1)=1,IF(AND(YEAR(JulDom1+23)=AñoCalendario,MONTH(JulDom1+23)=7),JulDom1+23,\"\"),IF(AND(YEAR(JulDom1+30)=AñoCalendario,MONTH(JulDom1+30)=7),JulDom1+30,\"\"))","v":"2019-07-30"},{"$f":"IF(DAY(JulDom1)=1,IF(AND(YEAR(JulDom1+24)=AñoCalendario,MONTH(JulDom1+24)=7),JulDom1+24,\"\"),IF(AND(YEAR(JulDom1+31)=AñoCalendario,MONTH(JulDom1+31)=7),JulDom1+31,\"\"))","v":"2019-07-31"},{"$f":"IF(DAY(JulDom1)=1,IF(AND(YEAR(JulDom1+25)=AñoCalendario,MONTH(JulDom1+25)=7),JulDom1+25,\"\"),IF(AND(YEAR(JulDom1+32)=AñoCalendario,MONTH(JulDom1+32)=7),JulDom1+32,\"\"))","v":""},{"$f":"IF(DAY(JulDom1)=1,IF(AND(YEAR(JulDom1+26)=AñoCalendario,MONTH(JulDom1+26)=7),JulDom1+26,\"\"),IF(AND(YEAR(JulDom1+33)=AñoCalendario,MONTH(JulDom1+33)=7),JulDom1+33,\"\"))","v":""},{"$f":"IF(DAY(JulDom1)=1,IF(AND(YEAR(JulDom1+27)=AñoCalendario,MONTH(JulDom1+27)=7),JulDom1+27,\"\"),IF(AND(YEAR(JulDom1+34)=AñoCalendario,MONTH(JulDom1+34)=7),JulDom1+34,\"\"))","v":""},{"$f":"IF(DAY(JulDom1)=1,IF(AND(YEAR(JulDom1+28)=AñoCalendario,MONTH(JulDom1+28)=7),JulDom1+28,\"\"),IF(AND(YEAR(JulDom1+35)=AñoCalendario,MONTH(JulDom1+35)=7),JulDom1+35,\"\"))","v":""},null,null,{"$f":"IF(DAY(AgoDom1)=1,IF(AND(YEAR(AgoDom1+22)=AñoCalendario,MONTH(AgoDom1+22)=8),AgoDom1+22,\"\"),IF(AND(YEAR(AgoDom1+29)=AñoCalendario,MONTH(AgoDom1+29)=8),AgoDom1+29,\"\"))","v":"2019-08-26"},{"$f":"IF(DAY(AgoDom1)=1,IF(AND(YEAR(AgoDom1+23)=AñoCalendario,MONTH(AgoDom1+23)=8),AgoDom1+23,\"\"),IF(AND(YEAR(AgoDom1+30)=AñoCalendario,MONTH(AgoDom1+30)=8),AgoDom1+30,\"\"))","v":"2019-08-27"},{"$f":"IF(DAY(AgoDom1)=1,IF(AND(YEAR(AgoDom1+24)=AñoCalendario,MONTH(AgoDom1+24)=8),AgoDom1+24,\"\"),IF(AND(YEAR(AgoDom1+31)=AñoCalendario,MONTH(AgoDom1+31)=8),AgoDom1+31,\"\"))","v":"2019-08-28"},{"$f":"IF(DAY(AgoDom1)=1,IF(AND(YEAR(AgoDom1+25)=AñoCalendario,MONTH(AgoDom1+25)=8),AgoDom1+25,\"\"),IF(AND(YEAR(AgoDom1+32)=AñoCalendario,MONTH(AgoDom1+32)=8),AgoDom1+32,\"\"))","v":"2019-08-29"},{"$f":"IF(DAY(AgoDom1)=1,IF(AND(YEAR(AgoDom1+26)=AñoCalendario,MONTH(AgoDom1+26)=8),AgoDom1+26,\"\"),IF(AND(YEAR(AgoDom1+33)=AñoCalendario,MONTH(AgoDom1+33)=8),AgoDom1+33,\"\"))","v":"2019-08-30"},{"$f":"IF(DAY(AgoDom1)=1,IF(AND(YEAR(AgoDom1+27)=AñoCalendario,MONTH(AgoDom1+27)=8),AgoDom1+27,\"\"),IF(AND(YEAR(AgoDom1+34)=AñoCalendario,MONTH(AgoDom1+34)=8),AgoDom1+34,\"\"))","v":"2019-08-31"},{"$f":"IF(DAY(AgoDom1)=1,IF(AND(YEAR(AgoDom1+28)=AñoCalendario,MONTH(AgoDom1+28)=8),AgoDom1+28,\"\"),IF(AND(YEAR(AgoDom1+35)=AñoCalendario,MONTH(AgoDom1+35)=8),AgoDom1+35,\"\"))","v":""}]
[null,null,{"$f":"IF(DAY(MayDom1)=1,IF(AND(YEAR(MayDom1+29)=AñoCalendario,MONTH(MayDom1+29)=5),MayDom1+29,\"\"),IF(AND(YEAR(MayDom1+36)=AñoCalendario,MONTH(MayDom1+36)=5),MayDom1+36,\"\"))","v":""},{"$f":"IF(DAY(MayDom1)=1,IF(AND(YEAR(MayDom1+30)=AñoCalendario,MONTH(MayDom1+30)=5),MayDom1+30,\"\"),IF(AND(YEAR(MayDom1+37)=AñoCalendario,MONTH(MayDom1+37)=5),MayDom1+37,\"\"))","v":""},{"$f":"IF(DAY(MayDom1)=1,IF(AND(YEAR(MayDom1+31)=AñoCalendario,MONTH(MayDom1+31)=5),MayDom1+31,\"\"),IF(AND(YEAR(MayDom1+38)=AñoCalendario,MONTH(MayDom1+38)=5),MayDom1+38,\"\"))","v":""},{"$f":"IF(DAY(MayDom1)=1,IF(AND(YEAR(MayDom1+32)=AñoCalendario,MONTH(MayDom1+32)=5),MayDom1+32,\"\"),IF(AND(YEAR(MayDom1+39)=AñoCalendario,MONTH(MayDom1+39)=5),MayDom1+39,\"\"))","v":""},{"$f":"IF(DAY(MayDom1)=1,IF(AND(YEAR(MayDom1+33)=AñoCalendario,MONTH(MayDom1+33)=5),MayDom1+33,\"\"),IF(AND(YEAR(MayDom1+40)=AñoCalendario,MONTH(MayDom1+40)=5),MayDom1+40,\"\"))","v":""},{"$f":"IF(DAY(MayDom1)=1,IF(AND(YEAR(MayDom1+34)=AñoCalendario,MONTH(MayDom1+34)=5),MayDom1+34,\"\"),IF(AND(YEAR(MayDom1+41)=AñoCalendario,MONTH(MayDom1+41)=5),MayDom1+41,\"\"))","v":""},{"$f":"IF(DAY(MayDom1)=1,IF(AND(YEAR(MayDom1+35)=AñoCalendario,MONTH(MayDom1+35)=5),MayDom1+35,\"\"),IF(AND(YEAR(MayDom1+42)=AñoCalendario,MONTH(MayDom1+42)=5),MayDom1+42,\"\"))","v":""},null,null,{"$f":"IF(DAY(JunDom1)=1,IF(AND(YEAR(JunDom1+29)=AñoCalendario,MONTH(JunDom1+29)=6),JunDom1+29,\"\"),IF(AND(YEAR(JunDom1+36)=AñoCalendario,MONTH(JunDom1+36)=6),JunDom1+36,\"\"))","v":""},{"$f":"IF(DAY(JunDom1)=1,IF(AND(YEAR(JunDom1+30)=AñoCalendario,MONTH(JunDom1+30)=6),JunDom1+30,\"\"),IF(AND(YEAR(JunDom1+37)=AñoCalendario,MONTH(JunDom1+37)=6),JunDom1+37,\"\"))","v":""},{"$f":"IF(DAY(JunDom1)=1,IF(AND(YEAR(JunDom1+31)=AñoCalendario,MONTH(JunDom1+31)=6),JunDom1+31,\"\"),IF(AND(YEAR(JunDom1+38)=AñoCalendario,MONTH(JunDom1+38)=6),JunDom1+38,\"\"))","v":""},{"$f":"IF(DAY(JunDom1)=1,IF(AND(YEAR(JunDom1+32)=AñoCalendario,MONTH(JunDom1+32)=6),JunDom1+32,\"\"),IF(AND(YEAR(JunDom1+39)=AñoCalendario,MONTH(JunDom1+39)=6),JunDom1+39,\"\"))","v":""},{"$f":"IF(DAY(JunDom1)=1,IF(AND(YEAR(JunDom1+33)=AñoCalendario,MONTH(JunDom1+33)=6),JunDom1+33,\"\"),IF(AND(YEAR(JunDom1+40)=AñoCalendario,MONTH(JunDom1+40)=6),JunDom1+40,\"\"))","v":""},{"$f":"IF(DAY(JunDom1)=1,IF(AND(YEAR(JunDom1+34)=AñoCalendario,MONTH(JunDom1+34)=6),JunDom1+34,\"\"),IF(AND(YEAR(JunDom1+41)=AñoCalendario,MONTH(JunDom1+41)=6),JunDom1+41,\"\"))","v":""},{"$f":"IF(DAY(JunDom1)=1,IF(AND(YEAR(JunDom1+35)=AñoCalendario,MONTH(JunDom1+35)=6),JunDom1+35,\"\"),IF(AND(YEAR(JunDom1+42)=AñoCalendario,MONTH(JunDom1+42)=6),JunDom1+42,\"\"))","v":""},null,null,{"$f":"IF(DAY(JulDom1)=1,IF(AND(YEAR(JulDom1+29)=AñoCalendario,MONTH(JulDom1+29)=7),JulDom1+29,\"\"),IF(AND(YEAR(JulDom1+36)=AñoCalendario,MONTH(JulDom1+36)=7),JulDom1+36,\"\"))","v":""},{"$f":"IF(DAY(JulDom1)=1,IF(AND(YEAR(JulDom1+30)=AñoCalendario,MONTH(JulDom1+30)=7),JulDom1+30,\"\"),IF(AND(YEAR(JulDom1+37)=AñoCalendario,MONTH(JulDom1+37)=7),JulDom1+37,\"\"))","v":""},{"$f":"IF(DAY(JulDom1)=1,IF(AND(YEAR(JulDom1+31)=AñoCalendario,MONTH(JulDom1+31)=7),JulDom1+31,\"\"),IF(AND(YEAR(JulDom1+38)=AñoCalendario,MONTH(JulDom1+38)=7),JulDom1+38,\"\"))","v":""},{"$f":"IF(DAY(JulDom1)=1,IF(AND(YEAR(JulDom1+32)=AñoCalendario,MONTH(JulDom1+32)=7),JulDom1+32,\"\"),IF(AND(YEAR(JulDom1+39)=AñoCalendario,MONTH(JulDom1+39)=7),JulDom1+39,\"\"))","v":""},{"$f":"IF(DAY(JulDom1)=1,IF(AND(YEAR(JulDom1+33)=AñoCalendario,MONTH(JulDom1+33)=7),JulDom1+33,\"\"),IF(AND(YEAR(JulDom1+40)=AñoCalendario,MONTH(JulDom1+40)=7),JulDom1+40,\"\"))","v":""},{"$f":"IF(DAY(JulDom1)=1,IF(AND(YEAR(JulDom1+34)=AñoCalendario,MONTH(JulDom1+34)=7),JulDom1+34,\"\"),IF(AND(YEAR(JulDom1+41)=AñoCalendario,MONTH(JulDom1+41)=7),JulDom1+41,\"\"))","v":""},{"$f":"IF(DAY(JulDom1)=1,IF(AND(YEAR(JulDom1+35)=AñoCalendario,MONTH(JulDom1+35)=7),JulDom1+35,\"\"),IF(AND(YEAR(JulDom1+42)=AñoCalendario,MONTH(JulDom1+42)=7),JulDom1+42,\"\"))","v":""},null,null,{"$f":"IF(DAY(AgoDom1)=1,IF(AND(YEAR(AgoDom1+29)=AñoCalendario,MONTH(AgoDom1+29)=8),AgoDom1+29,\"\"),IF(AND(YEAR(AgoDom1+36)=AñoCalendario,MONTH(AgoDom1+36)=8),AgoDom1+36,\"\"))","v":""},{"$f":"IF(DAY(AgoDom1)=1,IF(AND(YEAR(AgoDom1+30)=AñoCalendario,MONTH(AgoDom1+30)=8),AgoDom1+30,\"\"),IF(AND(YEAR(AgoDom1+37)=AñoCalendario,MONTH(AgoDom1+37)=8),AgoDom1+37,\"\"))","v":""},{"$f":"IF(DAY(AgoDom1)=1,IF(AND(YEAR(AgoDom1+31)=AñoCalendario,MONTH(AgoDom1+31)=8),AgoDom1+31,\"\"),IF(AND(YEAR(AgoDom1+38)=AñoCalendario,MONTH(AgoDom1+38)=8),AgoDom1+38,\"\"))","v":""},{"$f":"IF(DAY(AgoDom1)=1,IF(AND(YEAR(AgoDom1+32)=AñoCalendario,MONTH(AgoDom1+32)=8),AgoDom1+32,\"\"),IF(AND(YEAR(AgoDom1+39)=AñoCalendario,MONTH(AgoDom1+39)=8),AgoDom1+39,\"\"))","v":""},{"$f":"IF(DAY(AgoDom1)=1,IF(AND(YEAR(AgoDom1+33)=AñoCalendario,MONTH(AgoDom1+33)=8),AgoDom1+33,\"\"),IF(AND(YEAR(AgoDom1+40)=AñoCalendario,MONTH(AgoDom1+40)=8),AgoDom1+40,\"\"))","v":""},{"$f":"IF(DAY(AgoDom1)=1,IF(AND(YEAR(AgoDom1+34)=AñoCalendario,MONTH(AgoDom1+34)=8),AgoDom1+34,\"\"),IF(AND(YEAR(AgoDom1+41)=AñoCalendario,MONTH(AgoDom1+41)=8),AgoDom1+41,\"\"))","v":""},{"$f":"IF(DAY(AgoDom1)=1,IF(AND(YEAR(AgoDom1+35)=AñoCalendario,MONTH(AgoDom1+35)=8),AgoDom1+35,\"\"),IF(AND(YEAR(AgoDom1+42)=AñoCalendario,MONTH(AgoDom1+42)=8),AgoDom1+42,\"\"))","v":""}]
["El calendario de septiembre está en las celdas C43 a I49, el calendario de octubre en las celdas L43 a R49, el calendario de noviembre en las celdas U43 a AA49 y calendario de diciembre en las celdas AD43 a AJ49."]
["Los nombres de los meses se encuentran en esta fila. La etiqueta de septiembre está en la celda C42, la etiqueta de octubre de celda L42, la de noviembre en U42 y la de diciembre en AD42.",null,{"$f":"DATE(AñoCalendario,9,1)","v":"2019-09-01"},{"$nulls":8},{"$f":"DATE(AñoCalendario,10,1)","v":"2019-10-01"},{"$nulls":8},{"$f":"DATE(AñoCalendario,11,1)","v":"2019-11-01"},{"$nulls":8},{"$f":"DATE(AñoCalendario,12,1)","v":"2019-12-01"}]
["Los nombres de los días laborables se encuentran en esta fila. Los nombres de los días laborables de septiembre están en las celdas C43 a I43, los días laborables de octubre en las celdas L43 a R43, los días laborables de noviembre en las celdas U43 a AA43 y los días laborables de diciembre en las celdas AD43 a AJ43.",null,"lu","ma","mi","ju","vi","sá","do",null,null,"lu","ma","mi","ju","vi","sá","do",null,null,"lu","ma","mi","ju","vi","sá","do",null,null,"lu","ma","mi","ju","vi","sá","do"]
["Las fechas se actualizan automáticamente en esta fila. Las fechas de septiembre están en las celdas a la derecha, las celdas C44 a I49, las fechas de octubre en las celdas L44 a R49, las fechas de noviembre en las celdas U44 a AA49 y las fechas de diciembre en las celdas AD44 a AJ49.",null,{"$f":"IF(DAY(SepDom1)=1,\"\",IF(AND(YEAR(SepDom1+1)=AñoCalendario,MONTH(SepDom1+1)=9),SepDom1+1,\"\"))","v":""},{"$f":"IF(DAY(SepDom1)=1,\"\",IF(AND(YEAR(SepDom1+2)=AñoCalendario,MONTH(SepDom1+2)=9),SepDom1+2,\"\"))","v":""},{"$f":"IF(DAY(SepDom1)=1,\"\",IF(AND(YEAR(SepDom1+3)=AñoCalendario,MONTH(SepDom1+3)=9),SepDom1+3,\"\"))","v":""},{"$f":"IF(DAY(SepDom1)=1,\"\",IF(AND(YEAR(SepDom1+4)=AñoCalendario,MONTH(SepDom1+4)=9),SepDom1+4,\"\"))","v":""},{"$f":"IF(DAY(SepDom1)=1,\"\",IF(AND(YEAR(SepDom1+5)=AñoCalendario,MONTH(SepDom1+5)=9),SepDom1+5,\"\"))","v":""},{"$f":"IF(DAY(SepDom1)=1,\"\",IF(AND(YEAR(SepDom1+6)=AñoCalendario,MONTH(SepDom1+6)=9),SepDom1+6,\"\"))","v":""},{"$f":"IF(DAY(SepDom1)=1,IF(AND(YEAR(SepDom1)=AñoCalendario,MONTH(SepDom1)=9),SepDom1,\"\"),IF(AND(YEAR(SepDom1+7)=AñoCalendario,MONTH(SepDom1+7)=9),SepDom1+7,\"\"))","v":"2019-09-01"},null,null,{"$f":"IF(DAY(OctDom1)=1,\"\",IF(AND(YEAR(OctDom1+1)=AñoCalendario,MONTH(OctDom1+1)=10),OctDom1+1,\"\"))","v":""},{"$f":"IF(DAY(OctDom1)=1,\"\",IF(AND(YEAR(OctDom1+2)=AñoCalendario,MONTH(OctDom1+2)=10),OctDom1+2,\"\"))","v":"2019-10-01"},{"$f":"IF(DAY(OctDom1)=1,\"\",IF(AND(YEAR(OctDom1+3)=AñoCalendario,MONTH(OctDom1+3)=10),OctDom1+3,\"\"))","v":"2019-10-02"},{"$f":"IF(DAY(OctDom1)=1,\"\",IF(AND(YEAR(OctDom1+4)=AñoCalendario,MONTH(OctDom1+4)=10),OctDom1+4,\"\"))","v":"2019-10-03"},{"$f":"IF(DAY(OctDom1)=1,\"\",IF(AND(YEAR(OctDom1+5)=AñoCalendario,MONTH(OctDom1+5)=10),OctDom1+5,\"\"))","v":"2019-10-04"},{"$f":"IF(DAY(OctDom1)=1,\"\",IF(AND(YEAR(OctDom1+6)=AñoCalendario,MONTH(OctDom1+6)=10),OctDom1+6,\"\"))","v":"2019-10-05"},{"$f":"IF(DAY(OctDom1)=1,IF(AND(YEAR(OctDom1)=AñoCalendario,MONTH(OctDom1)=10),OctDom1,\"\"),IF(AND(YEAR(OctDom1+7)=AñoCalendario,MONTH(OctDom1+7)=10),OctDom1+7,\"\"))","v":"2019-10-06"},null,null,{"$f":"IF(DAY(NovDom1)=1,\"\",IF(AND(YEAR(NovDom1+1)=AñoCalendario,MONTH(NovDom1+1)=11),NovDom1+1,\"\"))","v":""},{"$f":"IF(DAY(NovDom1)=1,\"\",IF(AND(YEAR(NovDom1+2)=AñoCalendario,MONTH(NovDom1+2)=11),NovDom1+2,\"\"))","v":""},{"$f":"IF(DAY(NovDom1)=1,\"\",IF(AND(YEAR(NovDom1+3)=AñoCalendario,MONTH(NovDom1+3)=11),NovDom1+3,\"\"))","v":""},{"$f":"IF(DAY(NovDom1)=1,\"\",IF(AND(YEAR(NovDom1+4)=AñoCalendario,MONTH(NovDom1+4)=11),NovDom1+4,\"\"))","v":""},{"$f":"IF(DAY(NovDom1)=1,\"\",IF(AND(YEAR(NovDom1+5)=AñoCalendario,MONTH(NovDom1+5)=11),NovDom1+5,\"\"))","v":"2019-11-01"},{"$f":"IF(DAY(NovDom1)=1,\"\",IF(AND(YEAR(NovDom1+6)=AñoCalendario,MONTH(NovDom1+6)=11),NovDom1+6,\"\"))","v":"2019-11-02"},{"$f":"IF(DAY(NovDom1)=1,IF(AND(YEAR(NovDom1)=AñoCalendario,MONTH(NovDom1)=11),NovDom1,\"\"),IF(AND(YEAR(NovDom1+7)=AñoCalendario,MONTH(NovDom1+7)=11),NovDom1+7,\"\"))","v":"2019-11-03"},null,null,{"$f":"IF(DAY(DicDom1)=1,\"\",IF(AND(YEAR(DicDom1+1)=AñoCalendario,MONTH(DicDom1+1)=12),DicDom1+1,\"\"))","v":""},{"$f":"IF(DAY(DicDom1)=1,\"\",IF(AND(YEAR(DicDom1+2)=AñoCalendario,MONTH(DicDom1+2)=12),DicDom1+2,\"\"))","v":""},{"$f":"IF(DAY(DicDom1)=1,\"\",IF(AND(YEAR(DicDom1+3)=AñoCalendario,MONTH(DicDom1+3)=12),DicDom1+3,\"\"))","v":""},{"$f":"IF(DAY(DicDom1)=1,\"\",IF(AND(YEAR(DicDom1+4)=AñoCalendario,MONTH(DicDom1+4)=12),DicDom1+4,\"\"))","v":""},{"$f":"IF(DAY(DicDom1)=1,\"\",IF(AND(YEAR(DicDom1+5)=AñoCalendario,MONTH(DicDom1+5)=12),DicDom1+5,\"\"))","v":""},{"$f":"IF(DAY(DicDom1)=1,\"\",IF(AND(YEAR(DicDom1+6)=AñoCalendario,MONTH(DicDom1+6)=12),DicDom1+6,\"\"))","v":""},{"$f":"IF(DAY(DicDom1)=1,IF(AND(YEAR(DicDom1)=AñoCalendario,MONTH(DicDom1)=12),DicDom1,\"\"),IF(AND(YEAR(DicDom1+7)=AñoCalendario,MONTH(DicDom1+7)=12),DicDom1+7,\"\"))","v":"2019-12-01"}]
[null,null,{"$f":"IF(DAY(SepDom1)=1,IF(AND(YEAR(SepDom1+1)=AñoCalendario,MONTH(SepDom1+1)=9),SepDom1+1,\"\"),IF(AND(YEAR(SepDom1+8)=AñoCalendario,MONTH(SepDom1+8)=9),SepDom1+8,\"\"))","v":"2019-09-02"},{"$f":"IF(DAY(SepDom1)=1,IF(AND(YEAR(SepDom1+2)=AñoCalendario,MONTH(SepDom1+2)=9),SepDom1+2,\"\"),IF(AND(YEAR(SepDom1+9)=AñoCalendario,MONTH(SepDom1+9)=9),SepDom1+9,\"\"))","v":"2019-09-03"},{"$f":"IF(DAY(SepDom1)=1,IF(AND(YEAR(SepDom1+3)=AñoCalendario,MONTH(SepDom1+3)=9),SepDom1+3,\"\"),IF(AND(YEAR(SepDom1+10)=AñoCalendario,MONTH(SepDom1+10)=9),SepDom1+10,\"\"))","v":"2019-09-04"},{"$f":"IF(DAY(SepDom1)=1,IF(AND(YEAR(SepDom1+4)=AñoCalendario,MONTH(SepDom1+4)=9),SepDom1+4,\"\"),IF(AND(YEAR(SepDom1+11)=AñoCalendario,MONTH(SepDom1+11)=9),SepDom1+11,\"\"))","v":"2019-09-05"},{"$f":"IF(DAY(SepDom1)=1,IF(AND(YEAR(SepDom1+5)=AñoCalendario,MONTH(SepDom1+5)=9),SepDom1+5,\"\"),IF(AND(YEAR(SepDom1+12)=AñoCalendario,MONTH(SepDom1+12)=9),SepDom1+12,\"\"))","v":"2019-09-06"},{"$f":"IF(DAY(SepDom1)=1,IF(AND(YEAR(SepDom1+6)=AñoCalendario,MONTH(SepDom1+6)=9),SepDom1+6,\"\"),IF(AND(YEAR(SepDom1+13)=AñoCalendario,MONTH(SepDom1+13)=9),SepDom1+13,\"\"))","v":"2019-09-07"},{"$f":"IF(DAY(SepDom1)=1,IF(AND(YEAR(SepDom1+7)=AñoCalendario,MONTH(SepDom1+7)=9),SepDom1+7,\"\"),IF(AND(YEAR(SepDom1+14)=AñoCalendario,MONTH(SepDom1+14)=9),SepDom1+14,\"\"))","v":"2019-09-08"},null,null,{"$f":"IF(DAY(OctDom1)=1,IF(AND(YEAR(OctDom1+1)=AñoCalendario,MONTH(OctDom1+1)=10),OctDom1+1,\"\"),IF(AND(YEAR(OctDom1+8)=AñoCalendario,MONTH(OctDom1+8)=10),OctDom1+8,\"\"))","v":"2019-10-07"},{"$f":"IF(DAY(OctDom1)=1,IF(AND(YEAR(OctDom1+2)=AñoCalendario,MONTH(OctDom1+2)=10),OctDom1+2,\"\"),IF(AND(YEAR(OctDom1+9)=AñoCalendario,MONTH(OctDom1+9)=10),OctDom1+9,\"\"))","v":"2019-10-08"},{"$f":"IF(DAY(OctDom1)=1,IF(AND(YEAR(OctDom1+3)=AñoCalendario,MONTH(OctDom1+3)=10),OctDom1+3,\"\"),IF(AND(YEAR(OctDom1+10)=AñoCalendario,MONTH(OctDom1+10)=10),OctDom1+10,\"\"))","v":"2019-10-09"},{"$f":"IF(DAY(OctDom1)=1,IF(AND(YEAR(OctDom1+4)=AñoCalendario,MONTH(OctDom1+4)=10),OctDom1+4,\"\"),IF(AND(YEAR(OctDom1+11)=AñoCalendario,MONTH(OctDom1+11)=10),OctDom1+11,\"\"))","v":"2019-10-10"},{"$f":"IF(DAY(OctDom1)=1,IF(AND(YEAR(OctDom1+5)=AñoCalendario,MONTH(OctDom1+5)=10),OctDom1+5,\"\"),IF(AND(YEAR(OctDom1+12)=AñoCalendario,MONTH(OctDom1+12)=10),OctDom1+12,\"\"))","v":"2019-10-11"},{"$f":"IF(DAY(OctDom1)=1,IF(AND(YEAR(OctDom1+6)=AñoCalendario,MONTH(OctDom1+6)=10),OctDom1+6,\"\"),IF(AND(YEAR(OctDom1+13)=AñoCalendario,MONTH(OctDom1+13)=10),OctDom1+13,\"\"))","v":"2019-10-12"},{"$f":"IF(DAY(OctDom1)=1,IF(AND(YEAR(OctDom1+7)=AñoCalendario,MONTH(OctDom1+7)=10),OctDom1+7,\"\"),IF(AND(YEAR(OctDom1+14)=AñoCalendario,MONTH(OctDom1+14)=10),OctDom1+14,\"\"))","v":"2019-10-13"},null,null,{"$f":"IF(DAY(NovDom1)=1,IF(AND(YEAR(NovDom1+1)=AñoCalendario,MONTH(NovDom1+1)=11),NovDom1+1,\"\"),IF(AND(YEAR(NovDom1+8)=AñoCalendario,MONTH(NovDom1+8)=11),NovDom1+8,\"\"))","v":"2019-11-04"},{"$f":"IF(DAY(NovDom1)=1,IF(AND(YEAR(NovDom1+2)=AñoCalendario,MONTH(NovDom1+2)=11),NovDom1+2,\"\"),IF(AND(YEAR(NovDom1+9)=AñoCalendario,MONTH(NovDom1+9)=11),NovDom1+9,\"\"))","v":"2019-11-05"},{"$f":"IF(DAY(NovDom1)=1,IF(AND(YEAR(NovDom1+3)=AñoCalendario,MONTH(NovDom1+3)=11),NovDom1+3,\"\"),IF(AND(YEAR(NovDom1+10)=AñoCalendario,MONTH(NovDom1+10)=11),NovDom1+10,\"\"))","v":"2019-11-06"},{"$f":"IF(DAY(NovDom1)=1,IF(AND(YEAR(NovDom1+4)=AñoCalendario,MONTH(NovDom1+4)=11),NovDom1+4,\"\"),IF(AND(YEAR(NovDom1+11)=AñoCalendario,MONTH(NovDom1+11)=11),NovDom1+11,\"\"))","v":"2019-11-07"},{"$f":"IF(DAY(NovDom1)=1,IF(AND(YEAR(NovDom1+5)=AñoCalendario,MONTH(NovDom1+5)=11),NovDom1+5,\"\"),IF(AND(YEAR(NovDom1+12)=AñoCalendario,MONTH(NovDom1+12)=11),NovDom1+12,\"\"))","v":"2019-11-08"},{"$f":"IF(DAY(NovDom1)=1,IF(AND(YEAR(NovDom1+6)=AñoCalendario,MONTH(NovDom1+6)=11),NovDom1+6,\"\"),IF(AND(YEAR(NovDom1+13)=AñoCalendario,MONTH(NovDom1+13)=11),NovDom1+13,\"\"))","v":"2019-11-09"},{"$f":"IF(DAY(NovDom1)=1,IF(AND(YEAR(NovDom1+7)=AñoCalendario,MONTH(NovDom1+7)=11),NovDom1+7,\"\"),IF(AND(YEAR(NovDom1+14)=AñoCalendario,MONTH(NovDom1+14)=11),NovDom1+14,\"\"))","v":"2019-11-10"},null,null,{"$f":"IF(DAY(DicDom1)=1,IF(AND(YEAR(DicDom1+1)=AñoCalendario,MONTH(DicDom1+1)=12),DicDom1+1,\"\"),IF(AND(YEAR(DicDom1+8)=AñoCalendario,MONTH(DicDom1+8)=12),DicDom1+8,\"\"))","v":"2019-12-02"},{"$f":"IF(DAY(DicDom1)=1,IF(AND(YEAR(DicDom1+2)=AñoCalendario,MONTH(DicDom1+2)=12),DicDom1+2,\"\"),IF(AND(YEAR(DicDom1+9)=AñoCalendario,MONTH(DicDom1+9)=12),DicDom1+9,\"\"))","v":"2019-12-03"},{"$f":"IF(DAY(DicDom1)=1,IF(AND(YEAR(DicDom1+3)=AñoCalendario,MONTH(DicDom1+3)=12),DicDom1+3,\"\"),IF(AND(YEAR(DicDom1+10)=AñoCalendario,MONTH(DicDom1+10)=12),DicDom1+10,\"\"))","v":"2019-12-04"},{"$f":"IF(DAY(DicDom1)=1,IF(AND(YEAR(DicDom1+4)=AñoCalendario,MONTH(DicDom1+4)=12),DicDom1+4,\"\"),IF(AND(YEAR(DicDom1+11)=AñoCalendario,MONTH(DicDom1+11)=12),DicDom1+11,\"\"))","v":"2019-12-05"},{"$f":"IF(DAY(DicDom1)=1,IF(AND(YEAR(DicDom1+5)=AñoCalendario,MONTH(DicDom1+5)=12),DicDom1+5,\"\"),IF(AND(YEAR(DicDom1+12)=AñoCalendario,MONTH(DicDom1+12)=12),DicDom1+12,\"\"))","v":"2019-12-06"},{"$f":"IF(DAY(DicDom1)=1,IF(AND(YEAR(DicDom1+6)=AñoCalendario,MONTH(DicDom1+6)=12),DicDom1+6,\"\"),IF(AND(YEAR(DicDom1+13)=AñoCalendario,MONTH(DicDom1+13)=12),DicDom1+13,\"\"))","v":"2019-12-07"},{"$f":"IF(DAY(DicDom1)=1,IF(AND(YEAR(DicDom1+7)=AñoCalendario,MONTH(DicDom1+7)=12),DicDom1+7,\"\"),IF(AND(YEAR(DicDom1+14)=AñoCalendario,MONTH(DicDom1+14)=12),DicDom1+14,\"\"))","v":"2019-12-08"}]
[null,null,{"$f":"IF(DAY(SepDom1)=1,IF(AND(YEAR(SepDom1+8)=AñoCalendario,MONTH(SepDom1+8)=9),SepDom1+8,\"\"),IF(AND(YEAR(SepDom1+15)=AñoCalendario,MONTH(SepDom1+15)=9),SepDom1+15,\"\"))","v":"2019-09-09"},{"$f":"IF(DAY(SepDom1)=1,IF(AND(YEAR(SepDom1+9)=AñoCalendario,MONTH(SepDom1+9)=9),SepDom1+9,\"\"),IF(AND(YEAR(SepDom1+16)=AñoCalendario,MONTH(SepDom1+16)=9),SepDom1+16,\"\"))","v":"2019-09-10"},{"$f":"IF(DAY(SepDom1)=1,IF(AND(YEAR(SepDom1+10)=AñoCalendario,MONTH(SepDom1+10)=9),SepDom1+10,\"\"),IF(AND(YEAR(SepDom1+17)=AñoCalendario,MONTH(SepDom1+17)=9),SepDom1+17,\"\"))","v":"2019-09-11"},{"$f":"IF(DAY(SepDom1)=1,IF(AND(YEAR(SepDom1+11)=AñoCalendario,MONTH(SepDom1+11)=9),SepDom1+11,\"\"),IF(AND(YEAR(SepDom1+18)=AñoCalendario,MONTH(SepDom1+18)=9),SepDom1+18,\"\"))","v":"2019-09-12"},{"$f":"IF(DAY(SepDom1)=1,IF(AND(YEAR(SepDom1+12)=AñoCalendario,MONTH(SepDom1+12)=9),SepDom1+12,\"\"),IF(AND(YEAR(SepDom1+19)=AñoCalendario,MONTH(SepDom1+19)=9),SepDom1+19,\"\"))","v":"2019-09-13"},{"$f":"IF(DAY(SepDom1)=1,IF(AND(YEAR(SepDom1+13)=AñoCalendario,MONTH(SepDom1+13)=9),SepDom1+13,\"\"),IF(AND(YEAR(SepDom1+20)=AñoCalendario,MONTH(SepDom1+20)=9),SepDom1+20,\"\"))","v":"2019-09-14"},{"$f":"IF(DAY(SepDom1)=1,IF(AND(YEAR(SepDom1+14)=AñoCalendario,MONTH(SepDom1+14)=9),SepDom1+14,\"\"),IF(AND(YEAR(SepDom1+21)=AñoCalendario,MONTH(SepDom1+21)=9),SepDom1+21,\"\"))","v":"2019-09-15"},null,null,{"$f":"IF(DAY(OctDom1)=1,IF(AND(YEAR(OctDom1+8)=AñoCalendario,MONTH(OctDom1+8)=10),OctDom1+8,\"\"),IF(AND(YEAR(OctDom1+15)=AñoCalendario,MONTH(OctDom1+15)=10),OctDom1+15,\"\"))","v":"2019-10-14"},{"$f":"IF(DAY(OctDom1)=1,IF(AND(YEAR(OctDom1+9)=AñoCalendario,MONTH(OctDom1+9)=10),OctDom1+9,\"\"),IF(AND(YEAR(OctDom1+16)=AñoCalendario,MONTH(OctDom1+16)=10),OctDom1+16,\"\"))","v":"2019-10-15"},{"$f":"IF(DAY(OctDom1)=1,IF(AND(YEAR(OctDom1+10)=AñoCalendario,MONTH(OctDom1+10)=10),OctDom1+10,\"\"),IF(AND(YEAR(OctDom1+17)=AñoCalendario,MONTH(OctDom1+17)=10),OctDom1+17,\"\"))","v":"2019-10-16"},{"$f":"IF(DAY(OctDom1)=1,IF(AND(YEAR(OctDom1+11)=AñoCalendario,MONTH(OctDom1+11)=10),OctDom1+11,\"\"),IF(AND(YEAR(OctDom1+18)=AñoCalendario,MONTH(OctDom1+18)=10),OctDom1+18,\"\"))","v":"2019-10-17"},{"$f":"IF(DAY(OctDom1)=1,IF(AND(YEAR(OctDom1+12)=AñoCalendario,MONTH(OctDom1+12)=10),OctDom1+12,\"\"),IF(AND(YEAR(OctDom1+19)=AñoCalendario,MONTH(OctDom1+19)=10),OctDom1+19,\"\"))","v":"2019-10-18"},{"$f":"IF(DAY(OctDom1)=1,IF(AND(YEAR(OctDom1+13)=AñoCalendario,MONTH(OctDom1+13)=10),OctDom1+13,\"\"),IF(AND(YEAR(OctDom1+20)=AñoCalendario,MONTH(OctDom1+20)=10),OctDom1+20,\"\"))","v":"2019-10-19"},{"$f":"IF(DAY(OctDom1)=1,IF(AND(YEAR(OctDom1+14)=AñoCalendario,MONTH(OctDom1+14)=10),OctDom1+14,\"\"),IF(AND(YEAR(OctDom1+21)=AñoCalendario,MONTH(OctDom1+21)=10),OctDom1+21,\"\"))","v":"2019-10-20"},null,null,{"$f":"IF(DAY(NovDom1)=1,IF(AND(YEAR(NovDom1+8)=AñoCalendario,MONTH(NovDom1+8)=11),NovDom1+8,\"\"),IF(AND(YEAR(NovDom1+15)=AñoCalendario,MONTH(NovDom1+15)=11),NovDom1+15,\"\"))","v":"2019-11-11"},{"$f":"IF(DAY(NovDom1)=1,IF(AND(YEAR(NovDom1+9)=AñoCalendario,MONTH(NovDom1+9)=11),NovDom1+9,\"\"),IF(AND(YEAR(NovDom1+16)=AñoCalendario,MONTH(NovDom1+16)=11),NovDom1+16,\"\"))","v":"2019-11-12"},{"$f":"IF(DAY(NovDom1)=1,IF(AND(YEAR(NovDom1+10)=AñoCalendario,MONTH(NovDom1+10)=11),NovDom1+10,\"\"),IF(AND(YEAR(NovDom1+17)=AñoCalendario,MONTH(NovDom1+17)=11),NovDom1+17,\"\"))","v":"2019-11-13"},{"$f":"IF(DAY(NovDom1)=1,IF(AND(YEAR(NovDom1+11)=AñoCalendario,MONTH(NovDom1+11)=11),NovDom1+11,\"\"),IF(AND(YEAR(NovDom1+18)=AñoCalendario,MONTH(NovDom1+18)=11),NovDom1+18,\"\"))","v":"2019-11-14"},{"$f":"IF(DAY(NovDom1)=1,IF(AND(YEAR(NovDom1+12)=AñoCalendario,MONTH(NovDom1+12)=11),NovDom1+12,\"\"),IF(AND(YEAR(NovDom1+19)=AñoCalendario,MONTH(NovDom1+19)=11),NovDom1+19,\"\"))","v":"2019-11-15"},{"$f":"IF(DAY(NovDom1)=1,IF(AND(YEAR(NovDom1+13)=AñoCalendario,MONTH(NovDom1+13)=11),NovDom1+13,\"\"),IF(AND(YEAR(NovDom1+20)=AñoCalendario,MONTH(NovDom1+20)=11),NovDom1+20,\"\"))","v":"2019-11-16"},{"$f":"IF(DAY(NovDom1)=1,IF(AND(YEAR(NovDom1+14)=AñoCalendario,MONTH(NovDom1+14)=11),NovDom1+14,\"\"),IF(AND(YEAR(NovDom1+21)=AñoCalendario,MONTH(NovDom1+21)=11),NovDom1+21,\"\"))","v":"2019-11-17"},null,null,{"$f":"IF(DAY(DicDom1)=1,IF(AND(YEAR(DicDom1+8)=AñoCalendario,MONTH(DicDom1+8)=12),DicDom1+8,\"\"),IF(AND(YEAR(DicDom1+15)=AñoCalendario,MONTH(DicDom1+15)=12),DicDom1+15,\"\"))","v":"2019-12-09"},{"$f":"IF(DAY(DicDom1)=1,IF(AND(YEAR(DicDom1+9)=AñoCalendario,MONTH(DicDom1+9)=12),DicDom1+9,\"\"),IF(AND(YEAR(DicDom1+16)=AñoCalendario,MONTH(DicDom1+16)=12),DicDom1+16,\"\"))","v":"2019-12-10"},{"$f":"IF(DAY(DicDom1)=1,IF(AND(YEAR(DicDom1+10)=AñoCalendario,MONTH(DicDom1+10)=12),DicDom1+10,\"\"),IF(AND(YEAR(DicDom1+17)=AñoCalendario,MONTH(DicDom1+17)=12),DicDom1+17,\"\"))","v":"2019-12-11"},{"$f":"IF(DAY(DicDom1)=1,IF(AND(YEAR(DicDom1+11)=AñoCalendario,MONTH(DicDom1+11)=12),DicDom1+11,\"\"),IF(AND(YEAR(DicDom1+18)=AñoCalendario,MONTH(DicDom1+18)=12),DicDom1+18,\"\"))","v":"2019-12-12"},{"$f":"IF(DAY(DicDom1)=1,IF(AND(YEAR(DicDom1+12)=AñoCalendario,MONTH(DicDom1+12)=12),DicDom1+12,\"\"),IF(AND(YEAR(DicDom1+19)=AñoCalendario,MONTH(DicDom1+19)=12),DicDom1+19,\"\"))","v":"2019-12-13"},{"$f":"IF(DAY(DicDom1)=1,IF(AND(YEAR(DicDom1+13)=AñoCalendario,MONTH(DicDom1+13)=12),DicDom1+13,\"\"),IF(AND(YEAR(DicDom1+20)=AñoCalendario,MONTH(DicDom1+20)=12),DicDom1+20,\"\"))","v":"2019-12-14"},{"$f":"IF(DAY(DicDom1)=1,IF(AND(YEAR(DicDom1+14)=AñoCalendario,MONTH(DicDom1+14)=12),DicDom1+14,\"\"),IF(AND(YEAR(DicDom1+21)=AñoCalendario,MONTH(DicDom1+21)=12),DicDom1+21,\"\"))","v":"2019-12-15"}]
[null,null,{"$f":"IF(DAY(SepDom1)=1,IF(AND(YEAR(SepDom1+15)=AñoCalendario,MONTH(SepDom1+15)=9),SepDom1+15,\"\"),IF(AND(YEAR(SepDom1+22)=AñoCalendario,MONTH(SepDom1+22)=9),SepDom1+22,\"\"))","v":"2019-09-16"},{"$f":"IF(DAY(SepDom1)=1,IF(AND(YEAR(SepDom1+16)=AñoCalendario,MONTH(SepDom1+16)=9),SepDom1+16,\"\"),IF(AND(YEAR(SepDom1+23)=AñoCalendario,MONTH(SepDom1+23)=9),SepDom1+23,\"\"))","v":"2019-09-17"},{"$f":"IF(DAY(SepDom1)=1,IF(AND(YEAR(SepDom1+17)=AñoCalendario,MONTH(SepDom1+17)=9),SepDom1+17,\"\"),IF(AND(YEAR(SepDom1+24)=AñoCalendario,MONTH(SepDom1+24)=9),SepDom1+24,\"\"))","v":"2019-09-18"},{"$f":"IF(DAY(SepDom1)=1,IF(AND(YEAR(SepDom1+18)=AñoCalendario,MONTH(SepDom1+18)=9),SepDom1+18,\"\"),IF(AND(YEAR(SepDom1+25)=AñoCalendario,MONTH(SepDom1+25)=9),SepDom1+25,\"\"))","v":"2019-09-19"},{"$f":"IF(DAY(SepDom1)=1,IF(AND(YEAR(SepDom1+19)=AñoCalendario,MONTH(SepDom1+19)=9),SepDom1+19,\"\"),IF(AND(YEAR(SepDom1+26)=AñoCalendario,MONTH(SepDom1+26)=9),SepDom1+26,\"\"))","v":"2019-09-20"},{"$f":"IF(DAY(SepDom1)=1,IF(AND(YEAR(SepDom1+20)=AñoCalendario,MONTH(SepDom1+20)=9),SepDom1+20,\"\"),IF(AND(YEAR(SepDom1+27)=AñoCalendario,MONTH(SepDom1+27)=9),SepDom1+27,\"\"))","v":"2019-09-21"},{"$f":"IF(DAY(SepDom1)=1,IF(AND(YEAR(SepDom1+21)=AñoCalendario,MONTH(SepDom1+21)=9),SepDom1+21,\"\"),IF(AND(YEAR(SepDom1+28)=AñoCalendario,MONTH(SepDom1+28)=9),SepDom1+28,\"\"))","v":"2019-09-22"},null,null,{"$f":"IF(DAY(OctDom1)=1,IF(AND(YEAR(OctDom1+15)=AñoCalendario,MONTH(OctDom1+15)=10),OctDom1+15,\"\"),IF(AND(YEAR(OctDom1+22)=AñoCalendario,MONTH(OctDom1+22)=10),OctDom1+22,\"\"))","v":"2019-10-21"},{"$f":"IF(DAY(OctDom1)=1,IF(AND(YEAR(OctDom1+16)=AñoCalendario,MONTH(OctDom1+16)=10),OctDom1+16,\"\"),IF(AND(YEAR(OctDom1+23)=AñoCalendario,MONTH(OctDom1+23)=10),OctDom1+23,\"\"))","v":"2019-10-22"},{"$f":"IF(DAY(OctDom1)=1,IF(AND(YEAR(OctDom1+17)=AñoCalendario,MONTH(OctDom1+17)=10),OctDom1+17,\"\"),IF(AND(YEAR(OctDom1+24)=AñoCalendario,MONTH(OctDom1+24)=10),OctDom1+24,\"\"))","v":"2019-10-23"},{"$f":"IF(DAY(OctDom1)=1,IF(AND(YEAR(OctDom1+18)=AñoCalendario,MONTH(OctDom1+18)=10),OctDom1+18,\"\"),IF(AND(YEAR(OctDom1+25)=AñoCalendario,MONTH(OctDom1+25)=10),OctDom1+25,\"\"))","v":"2019-10-24"},{"$f":"IF(DAY(OctDom1)=1,IF(AND(YEAR(OctDom1+19)=AñoCalendario,MONTH(OctDom1+19)=10),OctDom1+19,\"\"),IF(AND(YEAR(OctDom1+26)=AñoCalendario,MONTH(OctDom1+26)=10),OctDom1+26,\"\"))","v":"2019-10-25"},{"$f":"IF(DAY(OctDom1)=1,IF(AND(YEAR(OctDom1+20)=AñoCalendario,MONTH(OctDom1+20)=10),OctDom1+20,\"\"),IF(AND(YEAR(OctDom1+27)=AñoCalendario,MONTH(OctDom1+27)=10),OctDom1+27,\"\"))","v":"2019-10-26"},{"$f":"IF(DAY(OctDom1)=1,IF(AND(YEAR(OctDom1+21)=AñoCalendario,MONTH(OctDom1+21)=10),OctDom1+21,\"\"),IF(AND(YEAR(OctDom1+28)=AñoCalendario,MONTH(OctDom1+28)=10),OctDom1+28,\"\"))","v":"2019-10-27"},null,null,{"$f":"IF(DAY(NovDom1)=1,IF(AND(YEAR(NovDom1+15)=AñoCalendario,MONTH(NovDom1+15)=11),NovDom1+15,\"\"),IF(AND(YEAR(NovDom1+22)=AñoCalendario,MONTH(NovDom1+22)=11),NovDom1+22,\"\"))","v":"2019-11-18"},{"$f":"IF(DAY(NovDom1)=1,IF(AND(YEAR(NovDom1+16)=AñoCalendario,MONTH(NovDom1+16)=11),NovDom1+16,\"\"),IF(AND(YEAR(NovDom1+23)=AñoCalendario,MONTH(NovDom1+23)=11),NovDom1+23,\"\"))","v":"2019-11-19"},{"$f":"IF(DAY(NovDom1)=1,IF(AND(YEAR(NovDom1+17)=AñoCalendario,MONTH(NovDom1+17)=11),NovDom1+17,\"\"),IF(AND(YEAR(NovDom1+24)=AñoCalendario,MONTH(NovDom1+24)=11),NovDom1+24,\"\"))","v":"2019-11-20"},{"$f":"IF(DAY(NovDom1)=1,IF(AND(YEAR(NovDom1+18)=AñoCalendario,MONTH(NovDom1+18)=11),NovDom1+18,\"\"),IF(AND(YEAR(NovDom1+25)=AñoCalendario,MONTH(NovDom1+25)=11),NovDom1+25,\"\"))","v":"2019-11-21"},{"$f":"IF(DAY(NovDom1)=1,IF(AND(YEAR(NovDom1+19)=AñoCalendario,MONTH(NovDom1+19)=11),NovDom1+19,\"\"),IF(AND(YEAR(NovDom1+26)=AñoCalendario,MONTH(NovDom1+26)=11),NovDom1+26,\"\"))","v":"2019-11-22"},{"$f":"IF(DAY(NovDom1)=1,IF(AND(YEAR(NovDom1+20)=AñoCalendario,MONTH(NovDom1+20)=11),NovDom1+20,\"\"),IF(AND(YEAR(NovDom1+27)=AñoCalendario,MONTH(NovDom1+27)=11),NovDom1+27,\"\"))","v":"2019-11-23"},{"$f":"IF(DAY(NovDom1)=1,IF(AND(YEAR(NovDom1+21)=AñoCalendario,MONTH(NovDom1+21)=11),NovDom1+21,\"\"),IF(AND(YEAR(NovDom1+28)=AñoCalendario,MONTH(NovDom1+28)=11),NovDom1+28,\"\"))","v":"2019-11-24"},null,null,{"$f":"IF(DAY(DicDom1)=1,IF(AND(YEAR(DicDom1+15)=AñoCalendario,MONTH(DicDom1+15)=12),DicDom1+15,\"\"),IF(AND(YEAR(DicDom1+22)=AñoCalendario,MONTH(DicDom1+22)=12),DicDom1+22,\"\"))","v":"2019-12-16"},{"$f":"IF(DAY(DicDom1)=1,IF(AND(YEAR(DicDom1+16)=AñoCalendario,MONTH(DicDom1+16)=12),DicDom1+16,\"\"),IF(AND(YEAR(DicDom1+23)=AñoCalendario,MONTH(DicDom1+23)=12),DicDom1+23,\"\"))","v":"2019-12-17"},{"$f":"IF(DAY(DicDom1)=1,IF(AND(YEAR(DicDom1+17)=AñoCalendario,MONTH(DicDom1+17)=12),DicDom1+17,\"\"),IF(AND(YEAR(DicDom1+24)=AñoCalendario,MONTH(DicDom1+24)=12),DicDom1+24,\"\"))","v":"2019-12-18"},{"$f":"IF(DAY(DicDom1)=1,IF(AND(YEAR(DicDom1+18)=AñoCalendario,MONTH(DicDom1+18)=12),DicDom1+18,\"\"),IF(AND(YEAR(DicDom1+25)=AñoCalendario,MONTH(DicDom1+25)=12),DicDom1+25,\"\"))","v":"2019-12-19"},{"$f":"IF(DAY(DicDom1)=1,IF(AND(YEAR(DicDom1+19)=AñoCalendario,MONTH(DicDom1+19)=12),DicDom1+19,\"\"),IF(AND(YEAR(DicDom1+26)=AñoCalendario,MONTH(DicDom1+26)=12),DicDom1+26,\"\"))","v":"2019-12-20"},{"$f":"IF(DAY(DicDom1)=1,IF(AND(YEAR(DicDom1+20)=AñoCalendario,MONTH(DicDom1+20)=12),DicDom1+20,\"\"),IF(AND(YEAR(DicDom1+27)=AñoCalendario,MONTH(DicDom1+27)=12),DicDom1+27,\"\"))","v":"2019-12-21"},{"$f":"IF(DAY(DicDom1)=1,IF(AND(YEAR(DicDom1+21)=AñoCalendario,MONTH(DicDom1+21)=12),DicDom1+21,\"\"),IF(AND(YEAR(DicDom1+28)=AñoCalendario,MONTH(DicDom1+28)=12),DicDom1+28,\"\"))","v":"2019-12-22"}]
[null,null,{"$f":"IF(DAY(SepDom1)=1,IF(AND(YEAR(SepDom1+22)=AñoCalendario,MONTH(SepDom1+22)=9),SepDom1+22,\"\"),IF(AND(YEAR(SepDom1+29)=AñoCalendario,MONTH(SepDom1+29)=9),SepDom1+29,\"\"))","v":"2019-09-23"},{"$f":"IF(DAY(SepDom1)=1,IF(AND(YEAR(SepDom1+23)=AñoCalendario,MONTH(SepDom1+23)=9),SepDom1+23,\"\"),IF(AND(YEAR(SepDom1+30)=AñoCalendario,MONTH(SepDom1+30)=9),SepDom1+30,\"\"))","v":"2019-09-24"},{"$f":"IF(DAY(SepDom1)=1,IF(AND(YEAR(SepDom1+24)=AñoCalendario,MONTH(SepDom1+24)=9),SepDom1+24,\"\"),IF(AND(YEAR(SepDom1+31)=AñoCalendario,MONTH(SepDom1+31)=9),SepDom1+31,\"\"))","v":"2019-09-25"},{"$f":"IF(DAY(SepDom1)=1,IF(AND(YEAR(SepDom1+25)=AñoCalendario,MONTH(SepDom1+25)=9),SepDom1+25,\"\"),IF(AND(YEAR(SepDom1+32)=AñoCalendario,MONTH(SepDom1+32)=9),SepDom1+32,\"\"))","v":"2019-09-26"},{"$f":"IF(DAY(SepDom1)=1,IF(AND(YEAR(SepDom1+26)=AñoCalendario,MONTH(SepDom1+26)=9),SepDom1+26,\"\"),IF(AND(YEAR(SepDom1+33)=AñoCalendario,MONTH(SepDom1+33)=9),SepDom1+33,\"\"))","v":"2019-09-27"},{"$f":"IF(DAY(SepDom1)=1,IF(AND(YEAR(SepDom1+27)=AñoCalendario,MONTH(SepDom1+27)=9),SepDom1+27,\"\"),IF(AND(YEAR(SepDom1+34)=AñoCalendario,MONTH(SepDom1+34)=9),SepDom1+34,\"\"))","v":"2019-09-28"},{"$f":"IF(DAY(SepDom1)=1,IF(AND(YEAR(SepDom1+28)=AñoCalendario,MONTH(SepDom1+28)=9),SepDom1+28,\"\"),IF(AND(YEAR(SepDom1+35)=AñoCalendario,MONTH(SepDom1+35)=9),SepDom1+35,\"\"))","v":"2019-09-29"},null,null,{"$f":"IF(DAY(OctDom1)=1,IF(AND(YEAR(OctDom1+22)=AñoCalendario,MONTH(OctDom1+22)=10),OctDom1+22,\"\"),IF(AND(YEAR(OctDom1+29)=AñoCalendario,MONTH(OctDom1+29)=10),OctDom1+29,\"\"))","v":"2019-10-28"},{"$f":"IF(DAY(OctDom1)=1,IF(AND(YEAR(OctDom1+23)=AñoCalendario,MONTH(OctDom1+23)=10),OctDom1+23,\"\"),IF(AND(YEAR(OctDom1+30)=AñoCalendario,MONTH(OctDom1+30)=10),OctDom1+30,\"\"))","v":"2019-10-29"},{"$f":"IF(DAY(OctDom1)=1,IF(AND(YEAR(OctDom1+24)=AñoCalendario,MONTH(OctDom1+24)=10),OctDom1+24,\"\"),IF(AND(YEAR(OctDom1+31)=AñoCalendario,MONTH(OctDom1+31)=10),OctDom1+31,\"\"))","v":"2019-10-30"},{"$f":"IF(DAY(OctDom1)=1,IF(AND(YEAR(OctDom1+25)=AñoCalendario,MONTH(OctDom1+25)=10),OctDom1+25,\"\"),IF(AND(YEAR(OctDom1+32)=AñoCalendario,MONTH(OctDom1+32)=10),OctDom1+32,\"\"))","v":"2019-10-31"},{"$f":"IF(DAY(OctDom1)=1,IF(AND(YEAR(OctDom1+26)=AñoCalendario,MONTH(OctDom1+26)=10),OctDom1+26,\"\"),IF(AND(YEAR(OctDom1+33)=AñoCalendario,MONTH(OctDom1+33)=10),OctDom1+33,\"\"))","v":""},{"$f":"IF(DAY(OctDom1)=1,IF(AND(YEAR(OctDom1+27)=AñoCalendario,MONTH(OctDom1+27)=10),OctDom1+27,\"\"),IF(AND(YEAR(OctDom1+34)=AñoCalendario,MONTH(OctDom1+34)=10),OctDom1+34,\"\"))","v":""},{"$f":"IF(DAY(OctDom1)=1,IF(AND(YEAR(OctDom1+28)=AñoCalendario,MONTH(OctDom1+28)=10),OctDom1+28,\"\"),IF(AND(YEAR(OctDom1+35)=AñoCalendario,MONTH(OctDom1+35)=10),OctDom1+35,\"\"))","v":""},null,null,{"$f":"IF(DAY(NovDom1)=1,IF(AND(YEAR(NovDom1+22)=AñoCalendario,MONTH(NovDom1+22)=11),NovDom1+22,\"\"),IF(AND(YEAR(NovDom1+29)=AñoCalendario,MONTH(NovDom1+29)=11),NovDom1+29,\"\"))","v":"2019-11-25"},{"$f":"IF(DAY(NovDom1)=1,IF(AND(YEAR(NovDom1+23)=AñoCalendario,MONTH(NovDom1+23)=11),NovDom1+23,\"\"),IF(AND(YEAR(NovDom1+30)=AñoCalendario,MONTH(NovDom1+30)=11),NovDom1+30,\"\"))","v":"2019-11-26"},{"$f":"IF(DAY(NovDom1)=1,IF(AND(YEAR(NovDom1+24)=AñoCalendario,MONTH(NovDom1+24)=11),NovDom1+24,\"\"),IF(AND(YEAR(NovDom1+31)=AñoCalendario,MONTH(NovDom1+31)=11),NovDom1+31,\"\"))","v":"2019-11-27"},{"$f":"IF(DAY(NovDom1)=1,IF(AND(YEAR(NovDom1+25)=AñoCalendario,MONTH(NovDom1+25)=11),NovDom1+25,\"\"),IF(AND(YEAR(NovDom1+32)=AñoCalendario,MONTH(NovDom1+32)=11),NovDom1+32,\"\"))","v":"2019-11-28"},{"$f":"IF(DAY(NovDom1)=1,IF(AND(YEAR(NovDom1+26)=AñoCalendario,MONTH(NovDom1+26)=11),NovDom1+26,\"\"),IF(AND(YEAR(NovDom1+33)=AñoCalendario,MONTH(NovDom1+33)=11),NovDom1+33,\"\"))","v":"2019-11-29"},{"$f":"IF(DAY(NovDom1)=1,IF(AND(YEAR(NovDom1+27)=AñoCalendario,MONTH(NovDom1+27)=11),NovDom1+27,\"\"),IF(AND(YEAR(NovDom1+34)=AñoCalendario,MONTH(NovDom1+34)=11),NovDom1+34,\"\"))","v":"2019-11-30"},{"$f":"IF(DAY(NovDom1)=1,IF(AND(YEAR(NovDom1+28)=AñoCalendario,MONTH(NovDom1+28)=11),NovDom1+28,\"\"),IF(AND(YEAR(NovDom1+35)=AñoCalendario,MONTH(NovDom1+35)=11),NovDom1+35,\"\"))","v":""},null,null,{"$f":"IF(DAY(DicDom1)=1,IF(AND(YEAR(DicDom1+22)=AñoCalendario,MONTH(DicDom1+22)=12),DicDom1+22,\"\"),IF(AND(YEAR(DicDom1+29)=AñoCalendario,MONTH(DicDom1+29)=12),DicDom1+29,\"\"))","v":"2019-12-23"},{"$f":"IF(DAY(DicDom1)=1,IF(AND(YEAR(DicDom1+23)=AñoCalendario,MONTH(DicDom1+23)=12),DicDom1+23,\"\"),IF(AND(YEAR(DicDom1+30)=AñoCalendario,MONTH(DicDom1+30)=12),DicDom1+30,\"\"))","v":"2019-12-24"},{"$f":"IF(DAY(DicDom1)=1,IF(AND(YEAR(DicDom1+24)=AñoCalendario,MONTH(DicDom1+24)=12),DicDom1+24,\"\"),IF(AND(YEAR(DicDom1+31)=AñoCalendario,MONTH(DicDom1+31)=12),DicDom1+31,\"\"))","v":"2019-12-25"},{"$f":"IF(DAY(DicDom1)=1,IF(AND(YEAR(DicDom1+25)=AñoCalendario,MONTH(DicDom1+25)=12),DicDom1+25,\"\"),IF(AND(YEAR(DicDom1+32)=AñoCalendario,MONTH(DicDom1+32)=12),DicDom1+32,\"\"))","v":"2019-12-26"},{"$f":"IF(DAY(DicDom1)=1,IF(AND(YEAR(DicDom1+26)=AñoCalendario,MONTH(DicDom1+26)=12),DicDom1+26,\"\"),IF(AND(YEAR(DicDom1+33)=AñoCalendario,MONTH(DicDom1+33)=12),DicDom1+33,\"\"))","v":"2019-12-27"},{"$f":"IF(DAY(DicDom1)=1,IF(AND(YEAR(DicDom1+27)=AñoCalendario,MONTH(DicDom1+27)=12),DicDom1+27,\"\"),IF(AND(YEAR(DicDom1+34)=AñoCalendario,MONTH(DicDom1+34)=12),DicDom1+34,\"\"))","v":"2019-12-28"},{"$f":"IF(DAY(DicDom1)=1,IF(AND(YEAR(DicDom1+28)=AñoCalendario,MONTH(DicDom1+28)=12),DicDom1+28,\"\"),IF(AND(YEAR(DicDom1+35)=AñoCalendario,MONTH(DicDom1+35)=12),DicDom1+35,\"\"))","v":"2019-12-29"}]
[null,null,{"$f":"IF(DAY(SepDom1)=1,IF(AND(YEAR(SepDom1+29)=AñoCalendario,MONTH(SepDom1+29)=9),SepDom1+29,\"\"),IF(AND(YEAR(SepDom1+36)=AñoCalendario,MONTH(SepDom1+36)=9),SepDom1+36,\"\"))","v":"2019-09-30"},{"$f":"IF(DAY(SepDom1)=1,IF(AND(YEAR(SepDom1+30)=AñoCalendario,MONTH(SepDom1+30)=9),SepDom1+30,\"\"),IF(AND(YEAR(SepDom1+37)=AñoCalendario,MONTH(SepDom1+37)=9),SepDom1+37,\"\"))","v":""},{"$f":"IF(DAY(SepDom1)=1,IF(AND(YEAR(SepDom1+31)=AñoCalendario,MONTH(SepDom1+31)=9),SepDom1+31,\"\"),IF(AND(YEAR(SepDom1+38)=AñoCalendario,MONTH(SepDom1+38)=9),SepDom1+38,\"\"))","v":""},{"$f":"IF(DAY(SepDom1)=1,IF(AND(YEAR(SepDom1+32)=AñoCalendario,MONTH(SepDom1+32)=9),SepDom1+32,\"\"),IF(AND(YEAR(SepDom1+39)=AñoCalendario,MONTH(SepDom1+39)=9),SepDom1+39,\"\"))","v":""},{"$f":"IF(DAY(SepDom1)=1,IF(AND(YEAR(SepDom1+33)=AñoCalendario,MONTH(SepDom1+33)=9),SepDom1+33,\"\"),IF(AND(YEAR(SepDom1+40)=AñoCalendario,MONTH(SepDom1+40)=9),SepDom1+40,\"\"))","v":""},{"$f":"IF(DAY(SepDom1)=1,IF(AND(YEAR(SepDom1+34)=AñoCalendario,MONTH(SepDom1+34)=9),SepDom1+34,\"\"),IF(AND(YEAR(SepDom1+41)=AñoCalendario,MONTH(SepDom1+41)=9),SepDom1+41,\"\"))","v":""},{"$f":"IF(DAY(SepDom1)=1,IF(AND(YEAR(SepDom1+35)=AñoCalendario,MONTH(SepDom1+35)=9),SepDom1+35,\"\"),IF(AND(YEAR(SepDom1+42)=AñoCalendario,MONTH(SepDom1+42)=9),SepDom1+42,\"\"))","v":""},null,null,{"$f":"IF(DAY(OctDom1)=1,IF(AND(YEAR(OctDom1+29)=AñoCalendario,MONTH(OctDom1+29)=10),OctDom1+29,\"\"),IF(AND(YEAR(OctDom1+36)=AñoCalendario,MONTH(OctDom1+36)=10),OctDom1+36,\"\"))","v":""},{"$f":"IF(DAY(OctDom1)=1,IF(AND(YEAR(OctDom1+30)=AñoCalendario,MONTH(OctDom1+30)=10),OctDom1+30,\"\"),IF(AND(YEAR(OctDom1+37)=AñoCalendario,MONTH(OctDom1+37)=10),OctDom1+37,\"\"))","v":""},{"$f":"IF(DAY(OctDom1)=1,IF(AND(YEAR(OctDom1+31)=AñoCalendario,MONTH(OctDom1+31)=10),OctDom1+31,\"\"),IF(AND(YEAR(OctDom1+38)=AñoCalendario,MONTH(OctDom1+38)=10),OctDom1+38,\"\"))","v":""},{"$f":"IF(DAY(OctDom1)=1,IF(AND(YEAR(OctDom1+32)=AñoCalendario,MONTH(OctDom1+32)=10),OctDom1+32,\"\"),IF(AND(YEAR(OctDom1+39)=AñoCalendario,MONTH(OctDom1+39)=10),OctDom1+39,\"\"))","v":""},{"$f":"IF(DAY(OctDom1)=1,IF(AND(YEAR(OctDom1+33)=AñoCalendario,MONTH(OctDom1+33)=10),OctDom1+33,\"\"),IF(AND(YEAR(OctDom1+40)=AñoCalendario,MONTH(OctDom1+40)=10),OctDom1+40,\"\"))","v":""},{"$f":"IF(DAY(OctDom1)=1,IF(AND(YEAR(OctDom1+34)=AñoCalendario,MONTH(OctDom1+34)=10),OctDom1+34,\"\"),IF(AND(YEAR(OctDom1+41)=AñoCalendario,MONTH(OctDom1+41)=10),OctDom1+41,\"\"))","v":""},{"$f":"IF(DAY(OctDom1)=1,IF(AND(YEAR(OctDom1+35)=AñoCalendario,MONTH(OctDom1+35)=10),OctDom1+35,\"\"),IF(AND(YEAR(OctDom1+42)=AñoCalendario,MONTH(OctDom1+42)=10),OctDom1+42,\"\"))","v":""},null,null,{"$f":"IF(DAY(NovDom1)=1,IF(AND(YEAR(NovDom1+29)=AñoCalendario,MONTH(NovDom1+29)=11),NovDom1+29,\"\"),IF(AND(YEAR(NovDom1+36)=AñoCalendario,MONTH(NovDom1+36)=11),NovDom1+36,\"\"))","v":""},{"$f":"IF(DAY(NovDom1)=1,IF(AND(YEAR(NovDom1+30)=AñoCalendario,MONTH(NovDom1+30)=11),NovDom1+30,\"\"),IF(AND(YEAR(NovDom1+37)=AñoCalendario,MONTH(NovDom1+37)=11),NovDom1+37,\"\"))","v":""},{"$f":"IF(DAY(NovDom1)=1,IF(AND(YEAR(NovDom1+31)=AñoCalendario,MONTH(NovDom1+31)=11),NovDom1+31,\"\"),IF(AND(YEAR(NovDom1+38)=AñoCalendario,MONTH(NovDom1+38)=11),NovDom1+38,\"\"))","v":""},{"$f":"IF(DAY(NovDom1)=1,IF(AND(YEAR(NovDom1+32)=AñoCalendario,MONTH(NovDom1+32)=11),NovDom1+32,\"\"),IF(AND(YEAR(NovDom1+39)=AñoCalendario,MONTH(NovDom1+39)=11),NovDom1+39,\"\"))","v":""},{"$f":"IF(DAY(NovDom1)=1,IF(AND(YEAR(NovDom1+33)=AñoCalendario,MONTH(NovDom1+33)=11),NovDom1+33,\"\"),IF(AND(YEAR(NovDom1+40)=AñoCalendario,MONTH(NovDom1+40)=11),NovDom1+40,\"\"))","v":""},{"$f":"IF(DAY(NovDom1)=1,IF(AND(YEAR(NovDom1+34)=AñoCalendario,MONTH(NovDom1+34)=11),NovDom1+34,\"\"),IF(AND(YEAR(NovDom1+41)=AñoCalendario,MONTH(NovDom1+41)=11),NovDom1+41,\"\"))","v":""},{"$f":"IF(DAY(NovDom1)=1,IF(AND(YEAR(NovDom1+35)=AñoCalendario,MONTH(NovDom1+35)=11),NovDom1+35,\"\"),IF(AND(YEAR(NovDom1+42)=AñoCalendario,MONTH(NovDom1+42)=11),NovDom1+42,\"\"))","v":""},null,null,{"$f":"IF(DAY(DicDom1)=1,IF(AND(YEAR(DicDom1+29)=AñoCalendario,MONTH(DicDom1+29)=12),DicDom1+29,\"\"),IF(AND(YEAR(DicDom1+36)=AñoCalendario,MONTH(DicDom1+36)=12),DicDom1+36,\"\"))","v":"2019-12-30"},{"$f":"IF(DAY(DicDom1)=1,IF(AND(YEAR(DicDom1+30)=AñoCalendario,MONTH(DicDom1+30)=12),DicDom1+30,\"\"),IF(AND(YEAR(DicDom1+37)=AñoCalendario,MONTH(DicDom1+37)=12),DicDom1+37,\"\"))","v":"2019-12-31"},{"$f":"IF(DAY(DicDom1)=1,IF(AND(YEAR(DicDom1+31)=AñoCalendario,MONTH(DicDom1+31)=12),DicDom1+31,\"\"),IF(AND(YEAR(DicDom1+38)=AñoCalendario,MONTH(DicDom1+38)=12),DicDom1+38,\"\"))","v":""},{"$f":"IF(DAY(DicDom1)=1,IF(AND(YEAR(DicDom1+32)=AñoCalendario,MONTH(DicDom1+32)=12),DicDom1+32,\"\"),IF(AND(YEAR(DicDom1+39)=AñoCalendario,MONTH(DicDom1+39)=12),DicDom1+39,\"\"))","v":""},{"$f":"IF(DAY(DicDom1)=1,IF(AND(YEAR(DicDom1+33)=AñoCalendario,MONTH(DicDom1+33)=12),DicDom1+33,\"\"),IF(AND(YEAR(DicDom1+40)=AñoCalendario,MONTH(DicDom1+40)=12),DicDom1+40,\"\"))","v":""},{"$f":"IF(DAY(DicDom1)=1,IF(AND(YEAR(DicDom1+34)=AñoCalendario,MONTH(DicDom1+34)=12),DicDom1+34,\"\"),IF(AND(YEAR(DicDom1+41)=AñoCalendario,MONTH(DicDom1+41)=12),DicDom1+41,\"\"))","v":""},{"$f":"IF(DAY(DicDom1)=1,IF(AND(YEAR(DicDom1+35)=AñoCalendario,MONTH(DicDom1+35)=12),DicDom1+35,\"\"),IF(AND(YEAR(DicDom1+42)=AñoCalendario,MONTH(DicDom1+42)=12),DicDom1+42,\"\"))","v":""}]